{"text_format":"1","workbook":"xlsx","n_sheets":5,"sheets":["Filme","Serien","Anime","Musik","Definitionen"],"not_rendered":{"charts":0,"images":0,"macros":1,"external_links":0,"defined_names":19,"comments":0,"pivot_tables":0},"unopened":[],"bounds":{"document_bytes":16777216,"sheet_cells":100000,"rows_first":2000,"rows_last":500,"rows_between":2000,"halvings":0,"cell_chars":16384,"cell_head_chars":4096},"cells_cut":0,"cells_raw":0,"read":"whole","date_system":"1900"}

{"sheet":"Filme","index":0,"n_rows":301,"n_cols":32,"rows_kept":301,"cut":false,"hidden":false,"merged":[]}
[null,"Titel","Abenteuer","Action","Animation","Comedy","Drama","Erotik","Fantasy","Grusel","Horror","Komödie","Krieg","Krimi","Liebe/Romantik","Musik","Mystery","Science-Fiction","Splatter","Thriller","Western","Zombies","Länge","Erscheinungsjahr","FSK","Tonformat Deutsch","Tonformat Englisch","Bildformat (x:1)","Anzahl Discs","Medientyp","Orginaltitel","Sortierschlüssel"]
[{"$f":"A1+1","v":1},"2001: Odyssee im Weltraum",null,null,null,null,null,null,null,null,null,null,null,null,null,null,null,"X",null,null,null,null,148,1968,12,"Dolby Digital 5.1","Dolby Digital 5.1",2.2000000000000002,1,"Blu-ray","2001: A Space Odyssey","2001"]
[2,"2010 - Das Jahr, in dem wir Kontakt aufnehmen",null,null,null,null,null,null,null,null,null,null,null,null,null,null,"X","X",null,null,null,null,116,1984,12,"Dolby Digital 5.1","Dolby TrueHD 5.1",2.4,1,"Blu-ray","2010","2010"]
[3,"3 Engel für Charlie",null,"X",null,null,null,null,null,null,null,"X",null,null,null,null,null,null,null,null,null,null,94,2000,12,"Dolby Digital 5.1","Dolby Digital 5.1",2.35,1,"DVD","Charlie's Angels","3 Engel für Charlie 1"]
[4,"3 Engel für Charlie - Volle Power",null,"X",null,null,null,null,null,null,null,"X",null,null,null,null,null,null,null,null,null,null,103,2003,16,"Dolby Digital 5.1","Dolby Digital 5.1",2.4,1,"DVD","Charlie's Angels: Full Throttle","3 Engel für Charlie 2"]
[5,"7 Zwerge - Männer allein im Wald",null,null,null,null,null,null,null,null,null,"X",null,null,null,null,null,null,null,null,null,null,91,2004,6,"Dolby Digital 5.1","-",2.35,2,"DVD","7 Zwerge - Männer allein im Wald","7 Zwerge 1"]
[6,"7 Zwerge - Der Wald ist nicht genug",null,null,null,null,null,null,null,null,null,"X",null,null,null,null,null,null,null,null,null,null,91,2006,0,"Dolby Digital 5.1","-",2.35,2,"DVD","7 Zwerge - Der Wald ist nicht genug","7 Zwerge 2"]
[7,"Ab durch die Hecke",null,"X","X",null,null,null,null,null,null,"X",null,null,null,null,null,null,null,null,null,null,80,2006,0,"Dolby Digital 5.1","Dolby Digital 5.1",1.85,2,"DVD","Over the Hedge","Ab durch…"]
[8,"Æon Flux - Blicke der Zukunft ins Auge",null,"X",null,null,null,null,null,null,null,null,null,null,null,null,null,"X",null,null,null,null,89,2005,12,"Dolby Digital 5.1","Dolby Digital 5.1",2.35,1,"DVD","Æon Flux","Aeon Flux"]
[9,"Akte X - Der Film",null,null,null,null,null,null,null,null,null,null,null,null,null,null,null,"X",null,"X",null,null,118,1998,12,"Dolby Digital 5.1","Dolby Digital 5.1",2.4,1,"DVD","X-Files, The","Akte X - Der Film"]
[10,"Alien - Das unheimliche Wesen aus einer fremden Welt",null,null,null,null,null,null,null,null,"X",null,null,null,null,null,null,"X",null,null,null,null,117,1979,16,"DTS 5.1","DTS-HD Master Audio 5.1",2.35,1,"Blu-ray","Alien","Alien 1"]
[11,"Aliens - Die Rückkehr",null,"X",null,null,null,null,null,null,"X",null,null,null,null,null,null,"X",null,null,null,null,154,1986,16,"DTS 5.1","DTS-HD Master Audio 5.1",1.85,1,"Blu-ray","Aliens","Alien 2"]
[12,"Alien³",null,null,null,null,null,null,null,null,"X",null,null,null,null,null,null,"X",null,null,null,null,145,1992,16,"DTS 5.1","DTS-HD Master Audio 5.1",2.35,1,"Blu-ray","Alien³","Alien 3"]
[13,"Alien - Die Wiedergeburt",null,"X",null,null,null,null,null,null,"X",null,null,null,null,null,null,"X",null,null,null,null,145,1997,16,"DTS 5.1","DTS-HD Master Audio 5.1",2.35,1,"Blu-ray","Alien: Resurrection","Alien 4"]
[14,"Alien: Covenant",null,null,null,null,null,null,null,null,"X",null,null,null,null,null,null,"X",null,"X",null,null,122,2017,16,"DTS 5.1","DTS-HD Master Audio 7.1",2.4,1,"Blu-ray","Alien: Covenant","Alien: Covenant"]
[15,"Alita: Battle Angel","X","X",null,null,null,null,null,null,null,null,null,null,"X",null,null,"X",null,"X",null,null,122,2019,12,"DTS 5.1","DTS-HD Master Audio 7.1",2.39,1,"Blu-ray","Alita: Battle Angel","Alita"]
[16,"Alles steht Kopf",null,null,"X",null,null,null,null,null,null,"X",null,null,null,null,null,null,null,null,null,null,95,2015,0,"DTS-HD Master Audio 7.1","Dolby Digital 7.1",1.78,3,"3D Blu-ray","Inside Out","Alles steht Kopf"]
[17,"American Beauty",null,null,null,null,"X",null,null,null,null,"X",null,null,"X",null,null,null,null,null,null,null,117,1999,16,"Dolby Digital 5.1","Dolby Digital 5.1",2.35,1,"DVD","American Beauty","American Beauty"]
[18,"American Pie",null,null,null,null,null,null,null,null,null,"X",null,null,"X",null,null,null,null,null,null,null,92,1999,12,"DTS 5.1","Dolby Digital 5.1",1.85,2,"DVD","American Pie","American Pie 1"]
[19,"American Pie 2",null,null,null,null,null,null,null,null,null,"X",null,null,null,null,null,null,null,null,null,null,106,2001,12,"DTS 5.1","Dolby Digital 5.1",1.85,1,"DVD","American Pie 2","American Pie 2"]
[20,"American Pie - Jetzt wird geheiratet",null,null,null,null,null,null,null,null,null,"X",null,null,null,null,null,null,null,null,null,null,99,2003,16,"Dolby Digital 5.1","Dolby Digital 5.1",2.35,1,"DVD","American Wedding","American Pie 3"]
[21,"Anchorman - Die Legende von Ron Burgundy",null,null,null,null,null,null,null,null,null,"X",null,null,null,null,null,null,null,null,null,null,90,2004,12,"Dolby Digital 5.1","Dolby Digital 5.1",1.85,1,"DVD","Anchorman: The Legend of Ron Burgundy","Anchorman"]
[22,"Apollo 13","X",null,null,null,"X",null,null,null,null,null,null,null,null,null,null,null,null,null,null,null,134,1995,12,"DTS 5.1","Dolby Digital 5.1",2.35,2,"DVD","Apollo 13","Apollo 13"]
[23,"Assassin's Creed","X","X",null,null,null,null,"X",null,null,null,null,null,null,null,null,null,null,null,null,null,115,2016,16,"DTS 5.1","DTS-HD Master Audio 7.1",2.39,2,"3D Blu-ray","Assassin's Creed","Assassin's Creed"]
[24,"Atomic Blonde",null,"X",null,null,null,null,null,null,null,null,null,null,null,null,null,null,null,"X",null,null,115,2017,16,"DTS-HD Master Audio 7.1","DTS-HD Master Audio 7.1",2.4,1,"Blu-ray","Atomic Blonde","Atomic Blonde"]
[25,"Austin Powers - Das Schärfste was ihre Majestät zu bieten hat",null,null,null,null,null,null,null,null,null,"X",null,null,null,null,null,null,null,null,null,null,85,1997,12,"Dolby Digital 5.1","Dolby Digital 5.1",2.35,1,"DVD","Austin Powers: International Man of Mystery","Austin Powers 1"]
[26,"Austin Powers - Spion in geheimer Missionarsstellung",null,null,null,null,null,null,null,null,null,"X",null,null,null,null,null,null,null,null,null,null,91,1999,12,"Dolby Digital 5.1","Dolby Digital 5.1",2.35,1,"DVD","Austin Powers: The Spy Who Shagged Me","Austin Powers 2"]
[27,"Austin Powers in Goldständer",null,null,null,null,null,null,null,null,null,"X",null,"X",null,null,null,"X",null,null,null,null,91,2002,12,"Dolby Digital 6.1","Dolby Digital 6.1",2.1,1,"DVD","Austin Powers in Goldmember","Austin Powers 3"]
[28,"Bad Boys - Harte Jungs",null,"X",null,null,null,null,null,null,null,"X",null,null,null,null,null,null,null,"X",null,null,114,1995,18,"Dolby Digital 5.1","Dolby Digital 5.1",1.85,1,"DVD","Bad Boys","Bad Boys 1"]
[29,"Bad Boys II",null,"X",null,null,null,null,null,null,null,"X",null,null,null,null,null,null,null,null,null,null,141,2003,18,"Dolby Digital 5.1","Dolby Digital 5.1",2.4,2,"DVD","Bad Boys II","Bad Boys 2"]
[30,"Beverly Hills Cop",null,"X",null,null,null,null,null,null,null,"X",null,null,null,null,null,null,null,null,null,null,101,1984,12,"Dolby Digital 2.0 Surround","Dolby Digital 5.1",1.85,1,"DVD","Beverly Hills Cop","Beverly Hills Cop 1"]
[31,"Beverly Hills Cop II",null,"X",null,null,null,null,null,null,null,"X",null,null,null,null,null,null,null,null,null,null,99,1987,12,"Dolby Digital 2.0 Surround","Dolby Digital 5.1",2.35,1,"DVD","Beverly Hills Cop II","Beverly Hills Cop 2"]
[32,"Beverly Hills Cop III",null,"X",null,null,null,null,null,null,null,"X",null,null,null,null,null,null,null,null,null,null,100,1994,16,"Dolby Digital 5.1","Dolby Digital 5.1",1.78,1,"DVD","Beverly Hills Cop III","Beverly Hills Cop 3"]
[33,"Black Hawk Down",null,"X",null,null,null,null,null,null,null,null,"X",null,null,null,null,null,null,null,null,null,138,2001,16,"Dolby Digital 5.1","Dolby Digital 5.1",2.35,2,"DVD","Black Hawk Down","Black Hawk Down"]
[34,"Blade Runner, Der",null,null,null,null,null,null,null,null,null,null,null,null,null,null,null,"X",null,null,null,null,118,1982,16,"Dolby Digital 5.1","Dolby TrueHD 5.1",2.4,1,"Blu-ray","Blade Runner","Blade Runner 1"]
[35,"Blade Runner 2049",null,null,null,null,null,null,null,null,null,null,null,null,null,null,null,"X",null,"X",null,null,163,2017,16,"Dolby Digital 5.1","Dolby Digital 5.1",2.4,2,"3D Blu-ray","Blade Runner 2049","Blade Runner 2"]
[36,"Blues Brothers",null,null,null,null,null,null,null,null,null,"X",null,null,null,null,null,null,null,null,null,null,142,1980,12,"Dolby Digital 1.0 Mono","Dolby Digital 5.1",1.85,1,"DVD","Blues Brothers, The","Blues Brothers 1"]
[37,"Blues Brothers 2000",null,null,null,null,null,null,null,null,null,"X",null,null,null,"X",null,null,null,null,null,null,119,1998,6,"Dolby Digital 2.0 Surround","Dolby Digital 5.1",1.85,1,"DVD","Blues Brothers 2000","Blues Brothers 2"]
[38,"Boot, Das",null,"X",null,null,"X",null,null,null,null,null,"X",null,null,null,null,null,null,null,null,null,208,1981,12,"Dolby Digital 5.1","Dolby Digital 5.1",1.78,1,"DVD","Boot, Das","Boot"]
[39,"Boot, Das - The Original Uncut Version (UK)",null,"X",null,null,"X",null,null,null,null,null,"X",null,null,null,null,null,null,null,null,null,282,1981,18,"Dolby Digital 5.1","Dolby Digital 5.1",1.85,2,"DVD","Boot, Das","Boot (UK)"]
[40,"Bruce Allmächtig",null,null,null,null,null,null,"X",null,null,"X",null,null,null,null,null,null,null,null,null,null,97,2003,6,"Dolby Digital 5.1","Dolby Digital 5.1",1.85,1,"DVD","Bruce Almighty","Bruce Allmächtig"]
[41,"Bullyparade - Der Film",null,null,null,null,null,null,null,null,null,"X",null,null,null,null,null,null,null,null,null,null,100,2017,6,"DTS-HD Master Audio 5.1","-",2.39,1,"Blu-ray","Bullyparade - Der Film","Bullyparade - Der Film"]
[42,"Cell, The",null,null,null,null,null,null,"X",null,"X",null,null,null,null,null,null,null,null,"X",null,null,105,2000,18,"DTS 5.1","Dolby Digital 5.1",2.35,2,"DVD","Cell, The","Cell"]
[43,"Chef Zum Verlieben, Ein",null,null,null,null,null,null,null,null,null,"X",null,null,"X",null,null,null,null,null,null,null,97,2002,0,"Dolby Digital 5.1","Dolby Digital 5.1",1.85,1,"DVD","Two Weeks Notice","Chef Zum Verlieben"]
[44,"Cloud Atlas",null,null,null,null,"X",null,null,null,null,null,null,null,null,null,"X","X",null,null,null,null,172,2012,12,"DTS-HD Master Audio 5.1","DTS-HD Master Audio 5.1",2.4,1,"Blu-ray","Cloud Atlas","Cloud Atlas"]
[45,"Constantine",null,"X",null,null,null,null,null,null,"X",null,null,null,null,null,null,null,null,null,null,null,121,2005,16,"Dolby Digital 5.1","Dolby TrueHD 5.1",2.4,1,"Blu-ray","Constantine","Constantine"]
[46,"Contagion",null,null,null,null,"X",null,null,null,null,null,null,null,null,null,null,null,null,"X",null,null,106,2011,12,"Dolby Digital 5.1","DTS-HD Master Audio 5.1",1.78,1,"Blu-ray","Contagion","Contagion"]
[47,"Croods, Die","X",null,"X",null,null,null,null,null,null,"X",null,null,null,null,null,null,null,null,null,null,99,2013,0,"DTS 5.1","DTS-HD Master Audio 7.1",2.35,3,"3D Blu-ray","Croods, The","Croods"]
[48,"Da Vinci Code - Sakrileg, The",null,null,null,null,"X",null,null,null,null,null,null,"X",null,null,"X",null,null,"X",null,null,167,2006,12,"Dolby Digital 5.1","Dolby Digital 5.1",2.4,2,"DVD","Da Vinci Code, The","Da Vinci Code"]
[49,"Dark City",null,null,null,null,null,null,null,null,null,null,null,null,null,null,null,"X",null,"X",null,null,102,1998,16,"Dolby Digital 5.1","Dolby Digital 5.1",2.35,1,"DVD","Dark City","Dark City"]
[50,"Dark Knight, The",null,"X",null,null,"X",null,null,null,null,null,null,null,null,null,null,null,null,"X",null,null,146,2008,16,"Dolby Digital 5.1","Dolby Digital 5.1",2.4,1,"DVD","Dark Knight, The","Dark Knight"]
[51,"Demolition Man",null,"X",null,null,null,null,null,null,null,"X",null,null,null,null,null,"X",null,null,null,null,115,1993,16,"Dolby Digital 5.1","DTS-HD Master Audio 5.1",2.4,1,"Blu-ray","Demolition Man","Demolition Man"]
[52,"Dirty Dancing",null,null,null,null,"X",null,null,null,null,null,null,null,"X",null,null,null,null,null,null,null,105,1987,12,"Dolby Digital 5.1","Dolby Digital 5.1",1.85,1,"DVD","Dirty Dancing","Dirty Dancing"]
[53,"Dracula - Tot aber Glücklich",null,null,null,null,null,null,null,null,null,"X",null,null,null,null,null,null,null,null,null,null,86,1995,12,"Dolby Digital 5.1","-",1.33,1,"DVD","Dracula: Dead and Loving It","Dracula - Tot aber Glücklich"]
[54,"Eiskalte Engel",null,null,null,null,null,null,null,null,null,null,null,null,"X",null,null,null,null,"X",null,null,95,1999,16,"Dolby Digital 5.1","Dolby Digital 5.1",1.85,1,"DVD","Cruel Intentions","Eiskalte Engel"]
[55,"Eiskönigin - Völlig unverfroren, Die","X",null,"X",null,null,null,"X",null,null,"X",null,null,"X","X",null,null,null,null,null,null,102,2013,0,"DTS-HD Master Audio 7.1","DTS-HD Master Audio 7.1",2.2400000000000002,2,"3D Blu-ray","Frozen","Eiskönigin"]
[56,"Epic - Verborgenes Königreich","X",null,"X",null,null,null,null,null,null,"X",null,null,null,null,null,null,null,null,null,null,102,2013,6,"DTS 5.1","DTS-HD Master Audio 7.1",2.4,3,"3D Blu-ray","Epic","Epic"]
[57,"Erin Brockovich",null,null,null,null,"X",null,null,null,null,null,null,null,null,null,null,null,null,null,null,null,126,2000,6,"Dolby Digital 5.1","Dolby Digital 5.1",1.85,1,"DVD","Erin Brockovich","Erin Brockovich"]
[58,"Evolution",null,null,null,null,null,null,null,null,null,"X",null,null,null,null,null,"X",null,null,null,null,98,2001,12,"Dolby Digital 5.1","Dolby Digital 5.1",1.85,1,"DVD","Evolution","Evolution"]
[59,"Expendables, The",null,"X",null,null,null,null,null,null,null,null,null,null,null,null,null,null,null,"X",null,null,95,2010,16,"Dolby Digital 5.1","Dolby Digital 5.1",2.4,1,"DVD","Expendables, The","Expendables 1"]
[60,"Expendables, The",null,"X",null,null,null,null,null,null,null,null,null,null,null,null,null,null,null,"X",null,null,100,2010,18,"Dolby Digital 5.1","Dolby Digital 5.1",2.4,1,"DVD","Expendables, The","Expendables 1"]
[61,"Expendables, The (Extended Director's Cut)",null,"X",null,null,null,null,null,null,null,null,null,null,null,null,null,null,null,"X",null,null,114,2010,18,"DTS-HD Master Audio 7.1","DTS-HD Master Audio 7.1",2.4,1,"Blu-ray","Expendables, The","Expendables 1"]
[62,"Expendables 2, The (Limited Special Uncut Edition)","X","X",null,null,null,null,null,null,null,null,null,null,null,null,null,null,null,null,null,null,103,2012,18,"DTS-HD Master Audio 7.1","DTS-HD Master Audio 7.1",2.4,1,"Blu-ray","Expendables 2, The","Expendables 2"]
[63,"Expendables 3, The (Extended Director's Cut)","X","X",null,null,null,null,null,null,null,null,null,null,null,null,null,null,null,"X",null,null,132,2014,18,"Dolby TrueHD 7.1","Dolby TrueHD 7.1",2.4,1,"Blu-ray","Expendables 3, The","Expendables 3"]
[64,"Ey Mann - Wo is' mein Auto?",null,null,null,null,null,null,null,null,null,"X",null,null,null,null,null,"X",null,null,null,null,80,2000,12,"Dolby Digital 5.1","Dolby Digital 5.1",1.85,1,"DVD","Dude, Where's My Car?","Ey Mann"]
[{"$f":"A65+1","v":65},"Final Fantasy - Die Mächte in Dir","X","X","X",null,null,null,"X",null,null,null,null,null,null,null,"X","X",null,null,null,null,102,2001,12,"Dolby Digital 5.1","Dolby Digital 5.1",1.85,2,"DVD","Final Fantasy: The Spirits Within","Final Fantasy"]
[66,"Findet Dorie",null,"X","X",null,null,null,null,null,null,"X",null,null,null,null,null,null,null,null,null,null,97,2016,0,"Dolby Digital 7.1","DTS-HD Master Audio 7.1",1.78,3,"3D Blu-ray","Finding Dory","Findet Dorie"]
[67,"Findet Nemo","X",null,"X",null,null,null,null,null,null,"X",null,null,null,null,null,null,null,null,null,null,96,2003,0,"DTS 6.1-ES","Dolby Digital 5.1",1.78,2,"DVD","Finding Nemo","Findet Nemo"]
[68,"Forrest Gump",null,null,null,null,"X",null,null,null,null,null,null,null,null,null,null,null,null,null,null,null,136,1994,12,"Dolby Digital 5.1","Dolby Digital 5.1",2.35,2,"DVD","Forrest Gump","Forrest Gump"]
[69,"Four Rooms",null,"X",null,null,null,null,null,null,null,"X",null,null,null,null,null,null,null,null,null,null,94,1995,16,"Dolby Digital 5.1","-",1.85,1,"DVD","Four Rooms","Four Rooms"]
[70,"Four Rooms (UK)",null,"X",null,null,null,null,null,null,null,"X",null,null,null,null,null,null,null,null,null,null,94,1995,18,"-","Dolby Digital 5.1",1.85,1,"DVD","Four Rooms","Four Rooms (UK)"]
[71,"From Dusk Till Dawn",null,null,null,null,null,null,null,null,"X","X",null,null,null,null,null,null,"X",null,null,null,104,1996,18,"Dolby Digital 5.1","Dolby Digital 5.1",1.85,2,"DVD","From Dusk Till Dawn","From Dusk Till Dawn"]
[72,"Fünfte Element, Das",null,"X",null,null,null,null,"X",null,null,"X",null,null,null,null,null,"X",null,null,null,null,121,1997,12,"Dolby Digital 5.1","Dolby Digital 2.0 Surround",2.35,1,"DVD","Fifth Element, The","Fünfte Element"]
[73,"Fünfte Element, Das",null,"X",null,null,null,null,"X",null,null,"X",null,null,null,null,null,"X",null,null,null,null,126,1997,12,"DTS-HD High Resolution 6.1","DTS-HD High Resolution 6.1",2.35,1,"Blu-ray","Fifth Element, The","Fünfte Element"]
[74,"Futurama: Bender's Big Score!",null,null,"X",null,null,null,null,null,null,"X",null,null,null,null,null,"X",null,null,null,null,85,2007,12,"Dolby Digital 5.1","Dolby Digital 5.1",1.78,1,"DVD","Futurama: Bender's Big Score!","Futurama 1"]
[75,"Futurama - Die Ära des Tentakels",null,null,"X",null,null,null,null,null,null,"X",null,null,null,null,null,"X",null,null,null,null,85,2008,12,"Dolby Digital 5.1","Dolby Digital 5.1",1.78,1,"DVD","Futurama: The Beast with a Billion Backs","Futurama 2"]
[76,"Futurama: Bender's Game",null,null,"X",null,null,null,null,null,null,"X",null,null,null,null,null,"X",null,null,null,null,83,2008,12,"Dolby Digital 5.1","Dolby Digital 5.1",1.78,1,"DVD","Futurama: Bender's Game","Futurama 3"]
[77,"Futurama - Leela und die Enzyklopoden",null,null,"X",null,null,null,null,null,null,"X",null,null,null,null,null,"X",null,null,null,null,86,2009,12,"Dolby Digital 5.1","Dolby Digital 5.1",1.78,1,"DVD","Futurama: Into the Wild Green Yonder","Futurama 4"]
[78,"Galaxy Quest - Planlos durchs Weltall",null,null,null,null,null,null,null,null,null,"X",null,null,null,null,null,"X",null,null,null,null,102,1999,12,"Dolby Digital 5.1","Dolby Digital 5.1",1.78,1,"DVD","Galaxy Quest","Galaxy Quest"]
[79,"Gattaca",null,null,null,null,"X",null,null,null,null,null,null,null,null,null,null,"X",null,"X",null,null,106,1997,12,"Dolby TrueHD 5.1","Dolby TrueHD 5.1",2.4,1,"Blu-ray","Gattaca","Gattaca"]
[80,"Geisterschloss, Das",null,null,null,null,null,null,null,"X",null,null,null,null,null,null,null,null,null,null,null,null,107,1999,12,"Dolby Digital 5.1","Dolby Digital 5.1",2.35,1,"DVD","Haunting, The","Geisterschloss"]
[81,"Ghost in the Shell",null,"X",null,null,"X",null,null,null,null,null,null,null,null,null,null,"X",null,"X",null,null,107,2017,16,"Dolby Digital 5.1","Dolby Atmos 7.1.4",1.85,2,"3D Blu-ray","Ghost in the Shell","Ghost in the Shell"]
[82,"Ghostbusters",null,null,null,null,null,null,"X",null,null,"X",null,null,null,null,null,null,null,null,null,null,101,1984,12,"Dolby Digital 2.0 Surround","Dolby Digital 5.1",2.35,1,"DVD","Ghostbusters","Ghostbusters 1"]
[83,"Ghostbusters II",null,null,null,null,null,null,"X","X","X","X",null,null,null,null,"X",null,null,null,null,null,104,1989,12,"Dolby Digital 2.0 Surround","Dolby Digital 5.1",2.35,1,"DVD","Ghostbusters II","Ghostbusters 2"]
[84,"Girls United",null,null,null,null,null,null,null,null,null,"X",null,null,null,null,null,null,null,null,null,null,94,2000,6,"Dolby Digital 5.1","Dolby Digital 5.1",1.85,1,"DVD","Bring It On","Girls United"]
[85,"Gravity",null,null,null,null,"X",null,null,null,null,null,null,null,null,null,null,"X",null,null,null,null,91,2013,12,"Dolby Digital 5.1","DTS-HD Master Audio 5.1",2.4,1,"Blu-ray","Gravity","Gravity"]
[86,"Harry Potter und der Stein der Weisen","X",null,null,null,null,null,"X",null,null,null,null,null,null,null,null,null,null,null,null,null,157,2001,12,"Dolby Digital 5.1","DTS-HD Master Audio 5.1",2.4,1,"Blu-ray","Harry Potter and the Sorcerer's Stone","Harry Potter 1"]
[87,"Harry Potter und die Kammer des Schreckens","X",null,null,null,null,null,"X",null,null,null,null,null,null,null,null,null,null,null,null,null,174,2002,12,"Dolby Digital 5.1","DTS-HD Master Audio 5.1",2.4,1,"Blu-ray","Harry Potter and the Chamber of Secrets","Harry Potter 2"]
[88,"Harry Potter und der Gefangene von Askaban","X",null,null,null,null,null,"X",null,null,null,null,null,null,null,null,null,null,null,null,null,142,2004,12,"Dolby Digital 5.1","DTS-HD Master Audio 5.1",2.4,1,"Blu-ray","Harry Potter and the Prisoner of Azkaban","Harry Potter 3"]
[89,"Harry Potter und der Feuerkelch","X",null,null,null,null,null,"X",null,null,null,null,null,null,null,null,null,null,null,null,null,157,2005,12,"Dolby Digital 5.1","DTS-HD Master Audio 5.1",2.4,1,"Blu-ray","Harry Potter and the Goblet of Fire","Harry Potter 4"]
[90,"Harry Potter und der Orden des Phönix","X",null,null,null,null,null,"X",null,null,null,null,null,null,null,null,null,null,null,null,null,138,2007,12,"Dolby Digital 5.1","DTS-HD Master Audio 5.1",2.4,1,"Blu-ray","Harry Potter and the Order of the Phoenix","Harry Potter 5"]
[91,"Harry Potter und der Halbblut-Prinz","X",null,null,null,null,null,"X",null,null,null,null,null,null,null,null,null,null,null,null,null,153,2009,12,"Dolby Digital 5.1","DTS-HD Master Audio 5.1",2.4,1,"Blu-ray","Harry Potter and the Half-Blood Prince","Harry Potter 6"]
[92,"Harry Potter und die Heiligtümer des Todes - Teil 1","X",null,null,null,null,null,"X",null,null,null,null,null,null,null,null,null,null,null,null,null,146,2010,12,"Dolby Digital 5.1","DTS-HD Master Audio 5.1",2.4,1,"Blu-ray","Harry Potter and the Deathly Hallows: Part 1","Harry Potter 7.1"]
[93,"Harry Potter und die Heiligtümer des Todes - Teil 2","X","X",null,null,null,null,"X",null,null,null,null,null,null,null,null,null,null,null,null,null,130,2011,12,"Dolby Digital 5.1","DTS-HD Master Audio 5.1",2.4,1,"Blu-ray","Harry Potter and the Deathly Hallows: Part 2","Harry Potter 7.2"]
[94,"Harvard Man",null,null,null,null,"X",null,null,null,null,null,null,"X","X",null,null,null,null,"X",null,null,94,2001,16,"DTS 5.1","Dolby Digital 2.0 Surround",1.78,1,"DVD","Harvard Man","Harvard Man"]
[95,"Herr der Ringe: Die Gefährten, Der","X",null,null,null,null,null,"X",null,null,null,null,null,null,null,null,null,null,null,null,null,218,2001,16,"DTS 6.1-ES","Dolby Digital 6.1",2.35,4,"DVD","Lord of the Rings: The Fellowship of the Ring, The","Herr der Ringe 1"]
[96,"Herr der Ringe: Die Gefährten, Der","X",null,null,null,null,null,"X",null,null,null,null,null,null,null,null,null,null,null,null,null,228,2001,16,"DTS-HD Master Audio 6.1","DTS-HD Master Audio 6.1",2.4,5,"Blu-ray","Lord of the Rings: The Fellowship of the Ring, The","Herr der Ringe 1"]
[97,"Herr der Ringe: Die Zwei Türme, Der","X",null,null,null,"X",null,"X",null,null,null,null,null,null,null,null,null,null,null,null,null,214,2002,12,"DTS 6.1-ES","Dolby Digital 6.1",2.4,4,"DVD","Lord of the Rings: The Two Towers, The","Herr der Ringe 2"]
[98,"Herr der Ringe: Die Zwei Türme, Der","X",null,null,null,"X",null,"X",null,null,null,null,null,null,null,null,null,null,null,null,null,235,2002,12,"DTS-HD Master Audio 6.1","DTS-HD Master Audio 6.1",2.4,5,"Blu-ray","Lord of the Rings: The Two Towers, The","Herr der Ringe 2"]
[99,"Herr der Ringe: Die Rückkehr des Königs, Der","X",null,null,null,"X",null,"X",null,null,null,null,null,null,null,null,null,null,null,null,null,240,2003,16,"DTS 6.1-ES","Dolby Digital 6.1",2.35,4,"DVD","Lord of the Rings: The Return of the King, The","Herr der Ringe 3"]
[100,"Herr der Ringe: Die Rückkehr des Königs, Der","X",null,null,null,"X",null,"X",null,null,null,null,null,null,null,null,null,null,null,null,null,263,2003,16,"DTS-HD Master Audio 6.1","DTS-HD Master Audio 6.1",2.4,5,"Blu-ray","Lord of the Rings: The Return of the King, The","Herr der Ringe 3"]
[101,"Hobbit: Eine Unerwartete Reise, Der","X",null,null,null,null,null,"X",null,null,null,null,null,null,null,null,null,null,null,null,null,169,2012,12,"DTS-HD Master Audio 7.1","DTS-HD Master Audio 7.1",2.4,4,"3D Blu-ray","Hobbit: An Unexpected Journey, The","Hobbit 1"]
[102,"Hobbit: Eine unerwartete Reise, Der","X",null,null,null,null,null,"X",null,null,null,null,null,null,null,null,null,null,null,null,null,182,2012,12,"DTS-HD Master Audio 7.1","DTS-HD Master Audio 7.1",2.4,5,"3D Blu-ray","Hobbit: An Unexpected Journey, The","Hobbit 1"]
[103,"Hobbit: Smaugs Einöde, Der","X",null,null,null,null,null,"X",null,null,null,null,null,null,null,null,null,null,null,null,null,186,2013,12,"DTS-HD Master Audio 7.1","DTS-HD Master Audio 7.1",2.4,5,"3D Blu-ray","Hobbit: The Desolation of Smaug, The","Hobbit 2"]
[104,"Hobbit: Die Schlacht der fünf Heere, Der","X",null,null,null,null,null,"X",null,null,null,null,null,null,null,null,null,null,null,null,null,164,2014,12,"DTS-HD Master Audio 7.1","DTS-HD Master Audio 7.1",2.4,5,"3D Blu-ray","Hobbit: The Battle of the Five Armies, The","Hobbit 3"]
[105,"Hot Shots - Die Mutter Aller Filme",null,null,null,null,null,null,null,null,null,"X",null,null,null,null,null,null,null,null,null,null,82,1991,6,"Dolby Digital 2.0 Surround","Dolby Digital 2.0 Surround",1.85,1,"DVD","Hot Shots!","Hot Shots 1"]
[106,"Hot Shots! - Der 2. Versuch",null,null,null,null,null,null,null,null,null,"X",null,null,null,null,null,null,null,null,null,null,85,1993,12,"Dolby Digital 2.0 Surround","Dolby Digital 2.0 Surround",1.85,1,"DVD","Hot Shots! Part Deux","Hot Shots 2"]
[107,"Hotel Transsilvanien",null,null,"X",null,null,null,null,null,null,"X",null,null,null,null,null,null,null,null,null,null,91,2012,6,"DTS-HD Master Audio 5.1","DTS-HD Master Audio 5.1",1.85,2,"3D Blu-ray","Hotel Transylvania","Hotel Transsilvanien 1"]
[108,"Hotel Transsilvanien 2",null,null,"X",null,null,null,"X",null,null,"X",null,null,null,null,null,null,null,null,null,null,89,2015,6,"DTS-HD Master Audio 5.1","DTS-HD Master Audio 5.1",1.85,2,"3D Blu-ray","Hotel Transylvania 2","Hotel Transsilvanien 2"]
[109,"Hotel Transsilvanien 3 - Ein Monster Urlaub",null,null,"X",null,null,null,"X",null,null,"X",null,null,null,null,null,null,null,null,null,null,97,2018,6,"DTS-HD Master Audio 5.1","DTS-HD Master Audio 5.1",1.85,1,"Blu-ray","Hotel Transylvania 3: Summer Vacation","Hotel Transsilvanien 3"]
[110,"Ice Age","X",null,"X",null,null,null,null,null,null,"X",null,null,null,null,null,null,null,null,null,null,78,2002,0,"Dolby Digital 5.1","Dolby Digital 5.1",1.85,1,"DVD","Ice Age","Ice Age 1"]
[111,"Ice Age 2 - Jetzt taut's",null,null,"X",null,null,null,null,null,null,"X",null,null,null,null,null,null,null,null,null,null,87,2006,0,"DTS 5.1","Dolby Digital 5.1",1.85,2,"DVD","Ice Age 2: The Meltdown","Ice Age 2"]
[112,"Ice Age 3 - Die Dinosaurier sind los",null,null,"X",null,null,null,null,null,null,"X",null,null,null,null,null,null,null,null,null,null,90,2009,0,"Dolby Digital 5.1","Dolby Digital 5.1",1.85,1,"DVD","Ice Age: Dawn of the Dinosaurs","Ice Age 3"]
[113,"Ice Age 4 - Voll verschoben","X",null,"X",null,null,null,null,null,null,"X",null,null,null,null,null,null,null,null,null,null,88,2012,0,"DTS 5.1","DTS-HD Master Audio 7.1",2.4,2,"3D Blu-ray","Ice Age: Continental Drift","Ice Age 4"]
[114,"Ich - Einfach unverbesserlich",null,null,"X",null,null,null,null,null,null,"X",null,null,null,null,null,null,null,null,null,null,95,2010,0,"DTS 5.1","DTS-HD Master Audio 5.1",1.85,3,"3D Blu-ray","Despicable Me","Ich - einfach unverbesserlich 1"]
[115,"Ich - Einfach unverbesserlich 2",null,null,"X",null,null,null,null,null,null,"x",null,null,null,null,null,null,null,null,null,null,98,2013,0,"DTS 5.1","DTS-HD Master Audio 5.1",1.85,2,"3D Blu-ray","Despicable Me 2","Ich - einfach unverbesserlich 2"]
[116,"Ich - Einfach unverbesserlich 3","X","X","X",null,null,null,null,null,null,"X",null,null,null,null,null,"X",null,null,null,null,90,2017,0,"DTS-HD Master Audio 7.1","DTS-HD Master Audio 7.1",2.4,2,"3D Blu-ray","Despicable Me 3","Ich - Einfach unverbesserlich 3"]
[117,"Illuminati",null,null,null,null,"X",null,null,null,null,null,null,"X",null,null,"X",null,null,"X",null,null,140,2009,16,"Dolby Digital 5.1","Dolby Digital 5.1",2.4,2,"DVD","Angels & Demons","Illuminati"]
[118,"Im Auftrag des Teufels",null,null,null,null,"X",null,null,null,"X",null,null,null,null,null,null,null,null,"X",null,null,138,1997,16,"Dolby Digital 5.1","Dolby Digital 5.1",2.35,1,"DVD","Devil's Advocate, The","Im Auftrag des Teufels"]
[119,"Independence Day",null,null,null,null,null,null,null,null,null,null,null,null,null,null,null,"X",null,null,null,null,147,1996,12,"Dolby Digital 5.1","Dolby Digital 2.0 Surround",2.35,2,"DVD","Independence Day","Independence Day"]
[120,"Indiana Jones - Jäger des verlorenen Schatzes","X","X",null,null,null,null,null,null,null,null,null,null,null,null,null,null,null,null,null,null,111,1981,16,"Dolby Digital 2.0 Surround","Dolby Digital 5.1",2.35,1,"DVD","Raiders of the Lost Ark","Indiana Jones 1"]
[121,"Indiana Jones und der Tempel des Todes","X","X",null,null,null,null,null,null,null,null,null,null,null,null,null,null,null,null,null,null,114,1984,16,"Dolby Digital 2.0 Surround","Dolby Digital 5.1",2.35,1,"DVD","Indiana Jones and the Temple of Doom","Indiana Jones 2"]
[122,"Indiana Jones und der letzte Kreuzzug","X","X",null,null,null,null,null,null,null,null,null,null,null,null,null,null,null,null,null,null,122,1989,12,"Dolby Digital 2.0 Surround","Dolby Digital 5.1",2.35,1,"DVD","Indiana Jones and the Last Crusade","Indiana Jones 3"]
[123,"Insel der besonderen Kinder, Die","X",null,null,null,null,null,"X",null,null,null,null,null,null,null,null,null,null,null,null,null,127,2016,12,"DTS 5.1","DTS-HD Master Audio 7.1",1.85,2,"3D Blu-ray","Miss Peregrine’s Home for Peculiar Children","Insel der besonderen Kinder"]
[124,"Iron Sky",null,"x",null,null,null,null,null,null,null,"x",null,null,null,null,null,"x",null,null,null,null,93,2012,12,"DTS-HD Master Audio 5.1","DTS-HD Master Audio 5.1",2.4,1,"Blu-ray","Iron Sky","Iron Sky"]
[125,"J. Edgar",null,null,null,null,"X",null,null,null,null,null,null,null,null,null,null,null,null,null,null,null,137,2011,12,"Dolby Digital 5.1","DTS-HD Master Audio 5.1",2.4,1,"Blu-ray","J. Edgar","J. Edgar"]
[126,"Jagd Auf Roter Oktober","X","X",null,null,null,null,null,null,null,null,null,null,null,null,null,null,null,"X",null,null,129,1990,12,"Dolby Digital 2.0 Surround","Dolby Digital 5.1",2.35,1,"DVD","Hunt for Red October, The","Jagd Auf Roter Oktober"]
[127,"Jarhead - Willkommen im Dreck",null,null,null,null,"X",null,null,null,null,null,"X",null,null,null,null,null,null,null,null,null,117,2005,12,"Dolby Digital 5.1","Dolby Digital 5.1",2.35,1,"DVD","Jarhead","Jarhead"]
[128,"Jury, Die",null,null,null,null,"X",null,null,null,null,null,null,null,null,null,null,null,null,"X",null,null,143,1996,12,"Dolby Digital 5.1","Dolby Digital 5.1",2.35,1,"DVD","A Time To Kill","Jury"]
[{"$f":"A129+1","v":129},"Kanu des Manitu, Das",null,null,null,null,null,null,null,null,null,"X",null,null,null,null,null,null,null,null,"X",null,88,2025,6,"Dolby Atmos 7.1.4","-",2.39,1,"Blu-ray","Kanu des Manitu, Das","Kanu des Manitu"]
[130,"Knochenjäger, Der",null,null,null,null,null,null,null,null,null,null,null,null,null,null,null,null,null,"X",null,null,114,1999,16,"Dolby Digital 5.1","Dolby Digital 5.1",2.35,1,"DVD","Bone Collector, The","Knochenjäger"]
[131,"Lara Croft: Tomb Raider","X","X",null,null,null,null,null,null,null,null,null,null,null,null,"X",null,null,null,null,null,97,2001,12,"DTS 5.1","Dolby Digital 5.1",2.35,3,"DVD","Lara Croft: Tomb Raider","Lara Croft: Tomb Raider 1"]
[132,"Lara Croft: Tomb Raider - Die Wiege des Lebens","X","X",null,null,null,null,null,null,null,null,null,null,null,null,"X",null,null,null,null,null,112,2003,12,"DTS 5.1","Dolby Digital 5.1",2.35,2,"DVD","Lara Croft: Tomb Raider - The Cradle of Life","Lara Croft: Tomb Raider 2"]
[133,"LEGO Movie, The",null,"X","X",null,null,null,null,null,null,"X",null,null,null,null,null,null,null,null,null,null,100,2014,0,"Dolby Digital 5.1","DTS-HD Master Audio 5.1",2.4,2,"3D Blu-ray","Lego Movie, The","Lego Movie 1"]
[134,"LEGO Movie 2, The","X","X","X",null,null,null,"X",null,null,"X",null,null,null,"X",null,null,null,null,null,null,107,2019,6,"DTS-HD Master Audio 5.1","DTS-HD Master Audio 5.1",2.4,1,"Blu-ray","Lego Movie 2: The Second Part, The","Lego Movie 2"]
[135,"Manhattan Love Story",null,null,null,null,null,null,null,null,null,"X",null,null,"X",null,null,null,null,null,null,null,101,2002,0,"Dolby Digital 5.1","Dolby Digital 5.1",2.4,1,"DVD","Maid in Manhattan","Manhattan Love Story"]
[136,"Mars Attacks!",null,"X",null,null,null,null,"X",null,null,"X",null,null,null,null,null,"X",null,null,null,null,102,1996,12,"Dolby Digital 5.1","Dolby Digital 5.1",1.78,1,"DVD","Mars Attacks!","Mars Attacks!"]
[137,"Matrix",null,"X",null,null,null,null,null,null,null,null,null,null,null,null,null,"X",null,"X",null,null,138,1999,16,"Dolby Digital 5.1","Dolby TrueHD 5.1",2.4,1,"Blu-ray","Matrix, The","Matrix1"]
[138,"Matrix Reloaded",null,"X",null,null,null,null,null,null,null,null,null,null,null,null,null,"X",null,"X",null,null,138,2003,16,"Dolby Digital 5.1","Dolby TrueHD 5.1",2.4,1,"Blu-ray","Matrix Reloaded, The","Matrix2"]
[139,"Matrix Revolutions",null,"X",null,null,null,null,null,null,null,null,null,null,null,null,null,"X",null,"X",null,null,129,2003,16,"Dolby Digital 5.1","Dolby TrueHD 5.1",2.4,1,"Blu-ray","Matrix Revolutions, The","Matrix3"]
[140,"Mel Brooks' Spaceballs",null,null,null,null,null,null,null,null,null,"X",null,null,null,null,null,"X",null,null,null,null,92,1987,12,"Dolby Digital 2.0 Surround","Dolby Digital 5.1",1.85,1,"DVD","Spaceballs","Mel Brooks' Spaceballs"]
[141,"Mel Brooks' Spaceballs",null,null,null,null,null,null,null,null,null,"X",null,null,null,null,null,"X",null,null,null,null,96,1987,12,"DTS 5.1","DTS-HD Master Audio 5.1",1.85,1,"Blu-ray","Spaceballs","Mel Brooks' Spaceballs"]
[142,"Mel Brooks' verrückte Geschichte der Welt",null,null,null,null,null,null,null,null,null,"X",null,null,null,null,null,null,null,null,null,null,92,1981,16,"DTS 5.1","DTS-HD Master Audio 5.1",2.35,1,"Blu-ray","History of the World: Part I","Mel Brooks' verrückte Geschichte der Welt"]
[143,"Men In Black",null,"X",null,null,null,null,null,null,null,"X",null,null,null,null,null,"X",null,null,null,null,94,1997,12,"Dolby Digital 5.1","Dolby Digital 5.1",1.85,1,"DVD","Men In Black","Men In Black 1"]
[144,"Men In Black 2",null,null,null,null,null,null,null,null,null,"X",null,null,null,null,null,"X",null,null,null,null,84,2002,12,"Dolby Digital 5.1","Dolby Digital 5.1",1.85,2,"DVD","Men In Black 2","Men In Black 2"]
[145,"Minions",null,null,"X",null,null,null,null,null,null,"X",null,null,null,null,null,null,null,null,null,null,91,2015,0,"Dolby Atmos 7.1.4","Dolby Atmos 7.1.4",1.85,2,"3D Blu-ray","Minions","Minions"]
[146,"Miss Undercover",null,"X",null,null,null,null,null,null,null,"X",null,null,null,null,null,null,null,null,null,null,106,2000,12,"Dolby Digital 5.1","Dolby Digital 5.1",1.85,1,"DVD","Miss Congeniality","Miss Undercover 1"]
[147,"Miss Undercover 2 - Fabelhaft und bewaffnet",null,"X",null,null,null,null,null,null,null,"X",null,null,null,null,null,null,null,null,null,null,110,2005,12,"Dolby Digital 5.1","Dolby Digital 5.1",2.4,1,"DVD","Miss Congeniality 2: Armed and Fabulous","Miss Undercover 2"]
[148,"Monster AG, Die",null,null,"X",null,null,null,"X",null,null,"X",null,null,null,null,null,null,null,null,null,null,88,2001,6,"Dolby Digital 5.1","DTS 5.1",1.33,1,"DVD","Monsters, Inc.","Monster AG"]
[149,"Monster Uni, Die","X",null,"X",null,null,null,null,null,null,"X",null,null,null,null,null,null,null,null,null,null,104,2013,0,"Dolby Digital 7.1","Dolby TrueHD 7.1",1.78,1,"Blu-ray","Monsters University","Monster Uni"]
[150,"Monty Python's Das Leben des Brian",null,null,null,null,null,null,null,null,null,"X",null,null,null,null,null,null,null,null,null,null,90,1979,12,"Dolby Digital 1.0 Mono","Dolby Digital 5.1",1.85,1,"DVD","Life of Brian","Monty Python's Das Leben"]
[151,"Monty Python's Der Sinn des Lebens",null,null,null,null,null,null,null,null,null,"X",null,null,null,null,null,null,null,null,null,null,103,1983,16,"DTS 5.1","Dolby Digital 5.1",1.85,2,"DVD","Monty Python's The Meaning of Life","Monty Python's Der Sinn"]
[152,"Monty Python's Die Ritter der Kokusnuss","X",null,null,null,null,null,null,null,null,"X",null,null,null,null,null,null,null,null,null,null,86,1975,12,"Dolby Digital 1.0 Mono","Dolby Digital 5.1",1.85,2,"DVD","Monty Python and the Holy Grail","Monty Python's Die Ritter"]
[153,"Monty Python's wunderbare Welt der Schwerkraft",null,null,null,null,null,null,null,null,null,"X",null,null,null,null,null,null,null,null,null,null,85,1971,12,"Dolby Digital 5.1","Dolby Digital 1.0 Mono",1.85,1,"DVD","And Now For Something Completely Different","Monty Python's wunderbare Welt"]
[154,"Moon",null,null,null,null,"X",null,null,null,null,null,null,null,null,null,"X","X",null,"X",null,null,93,2009,12,"DTS-HD Master Audio 5.1","DTS-HD Master Audio 5.1",2.4,1,"Blu-ray","Moon","Moon"]
[155,"Mr. & Mrs. Smith",null,"X",null,null,null,null,null,null,null,"X",null,null,null,null,null,null,null,null,null,null,115,2005,12,"DTS 5.1","Dolby Digital 5.1",2.35,1,"DVD","Mr. & Mrs. Smith","Mr. & Mrs. Smith"]
[156,"Nacht bei McCool's, Eine",null,null,null,null,null,null,null,null,null,"X",null,null,null,null,null,null,null,null,null,null,93,2001,16,"Dolby Digital 5.1","Dolby Digital 5.1",1.78,1,"DVD","One Night at McCool's","Nacht bei McCool's"]
[157,"Nackte Kanone, Die",null,null,null,null,null,null,null,null,null,"X",null,null,null,null,null,null,null,null,null,null,81,1988,12,"Dolby Digital 1.0 Mono","Dolby Digital 5.1",1.78,1,"DVD","Naked Gun: From the Files of Police Squad!, The","Nackte Kanone 1"]
[158,"Nackte Kanone 2 1/2, Die",null,null,null,null,null,null,null,null,null,"X",null,null,null,null,null,null,null,null,null,null,82,1991,12,"Dolby Digital 2.0 Surround","Dolby Digital 5.1",1.78,1,"DVD","Naked Gun 2 1/2: The Smell of Fear, The","Nackte Kanone 2"]
[159,"Nackte Kanone 33 1/3, Die",null,null,null,null,null,null,null,null,null,"X",null,null,null,null,null,null,null,null,null,null,79,1994,12,"Dolby Digital 2.0 Surround","Dolby Digital 5.1",1.78,1,"DVD","Naked Gun 33 1/3: The final Insult","Nackte Kanone 3"]
[160,"Nackte Kanone, Die",null,"X",null,null,null,null,null,null,null,"X",null,null,null,null,null,null,null,null,null,null,85,2025,12,"Dolby Digital 5.1","Dolby Atmos 7.1.4",2.39,1,"Blu-ray","Naked Gun, The","Nackte Kanone neu 2025"]
[161,"Natural Born Killers",null,null,null,null,null,null,null,null,null,null,null,null,"X",null,null,null,null,"X",null,null,117,1994,18,"Dolby Digital 5.1","Dolby Digital 5.1",1.78,1,"DVD","Natural Born Killers","Natural Born Killers"]
[162,"Nicht Noch Ein Teenie-Film",null,null,null,null,null,null,null,null,null,"X",null,null,null,null,null,null,null,null,null,null,85,2001,12,"Dolby Digital 5.1","Dolby Digital 5.1",1.85,1,"DVD","Not Another Teen Movie","Nicht Noch Ein Teenie-Film"]
[163,"Notting Hill",null,null,null,null,null,null,null,null,null,"X",null,null,"X",null,null,null,null,null,null,null,119,1999,0,"Dolby Digital 5.1","Dolby Digital 5.1",2.35,1,"DVD","Notting Hill","Notting Hill"]
[164,"One Hour Photo",null,null,null,null,"X",null,null,null,null,null,null,null,null,null,null,null,null,"X",null,null,92,2002,12,"Dolby Digital 5.1","Dolby Digital 5.1",1.85,1,"DVD","One Hour Photo","One Hour Photo"]
[165,"Out of Sight",null,null,null,null,"X",null,null,null,null,"X",null,"X",null,null,null,null,null,null,null,null,118,1998,12,"Dolby Digital 2.0 Surround","Dolby Digital 5.1",1.85,1,"DVD","Out of Sight","Out of Sight"]
[166,"Party Animals - …wilder geht's nicht!",null,null,null,null,null,null,null,null,null,"X",null,null,null,null,null,null,null,null,null,null,89,2002,12,"Dolby Digital 5.1","Dolby Digital 5.1",1.85,1,"DVD","Van Wilder","Party Animals"]
[167,"Passengers","X",null,null,null,"X",null,null,null,null,null,null,null,"X",null,null,null,null,null,null,null,116,2016,12,"DTS-HD Master Audio 5.1","DTS-HD Master Audio 5.1",2.39,2,"3D Blu-ray","Passengers","Passengers"]
[168,"Per Anhalter durch die Galaxis","X",null,null,null,null,null,null,null,null,"X",null,null,null,null,null,"X",null,null,null,null,104,2005,6,"Dolby Digital 5.1","Dolby Digital 5.1",2.35,1,"DVD","Hitchhiker's Guide to the Galaxy, The","Per Anhalter"]
[169,"Pets",null,null,"X",null,null,null,null,null,null,"X",null,null,null,null,null,null,null,null,null,null,86,2016,0,"Dolby Atmos 7.1.4","Dolby Atmos 7.1.4",1.85,1,"Blu-ray","Secret Life of Pets, The","Pets1"]
[170,"Pets 2","X",null,"X",null,null,null,null,null,null,"X",null,null,null,null,null,null,null,null,null,null,86,2019,0,"Dolby Atmos 7.1.4","Dolby Atmos 7.1.4",1.85,2,"3D Blu-ray","Secret Life of Pets 2, The","Pets2"]
[171,"Piraten! - Ein Haufen merkwürdiger Typen, Die","X",null,"X",null,null,null,null,null,null,"X",null,null,null,null,null,null,null,null,null,null,88,2012,0,"Dolby Digital 5.1","DTS-HD Master Audio 5.1",2.35,1,"3D Blu-ray","Pirates! Band of Misfits, The","Piraten!"]
[172,"Pitch Black - Planet der Finsternis",null,null,null,null,null,null,null,null,"X",null,null,null,null,null,null,"X",null,null,null,null,134,2000,16,"DTS 5.1","DTS-HD Master Audio 5.1",2.35,1,"Blu-ray","Pitch Black","Pitch Black 1"]
[173,"Riddick - Chroniken eines Kriegers",null,"X",null,null,null,null,null,null,null,null,null,null,null,null,null,"X",null,null,null,null,108,2004,16,"DTS 5.1","DTS-HD Master Audio 5.1",2.4,1,"Blu-ray","Chronicles of Riddick, The","Pitch Black 2"]
[174,"Priest",null,"X",null,null,null,null,null,null,"X",null,null,null,null,null,null,null,null,null,null,null,87,2011,16,"DTS-HD Master Audio 5.1","Dolby Digital 5.1",2.4,1,"3D Blu-ray","Priest","Priest"]
[175,"Prometheus - Dunkle Zeichen",null,"X",null,null,null,null,null,null,"X",null,null,null,null,null,null,"X",null,null,null,null,124,2012,16,"DTS 5.1","DTS-HD Master Audio 7.1",2.4,4,"3D Blu-ray","Prometheus","Prometheus"]
[176,"Pulp Fiction",null,null,null,null,null,null,null,null,null,null,null,null,null,null,null,null,null,"X",null,null,148,1994,16,"Dolby Digital 5.1","Dolby Digital 5.1",2.35,1,"DVD","Pulp Fiction","Pulp Fiction"]
[177,"Rango",null,"X","X",null,null,null,null,null,null,"X",null,null,null,null,null,null,null,null,"X",null,107,2011,6,"Dolby Digital 5.1","DTS-HD Master Audio 5.1",2.4,1,"Blu-ray","Rango","Rango"]
[178,"Rapunzel - Neu verföhnt",null,null,"X",null,null,null,null,null,null,"X",null,null,"X","X",null,null,null,null,null,null,96,2010,0,"Dolby Digital 5.1","Dolby Digital 5.1",1.78,1,"DVD","Tangled","Rapunzel"]
[179,"Rat Race - Der nackte Wahnsinn",null,null,null,null,null,null,null,null,null,"X",null,null,null,null,null,null,null,null,null,null,107,2001,12,"Dolby Digital 5.1","Dolby Digital 5.1",2.35,1,"DVD","Rat Race","Rat Race"]
[180,"RED - Älter. Härter. Besser.",null,"X",null,null,null,null,null,null,null,"X",null,null,null,null,null,null,null,null,null,null,107,2010,16,"DTS 5.1","Dolby Digital 5.1",2.35,1,"DVD","RED","RED 1"]
[181,"R.E.D. 2 - Noch Älter. Härter. Besser.",null,"X",null,null,null,null,null,null,null,"X",null,null,null,null,null,null,null,null,null,null,116,2013,16,"DTS-HD Master Audio 7.1","DTS-HD Master Audio 7.1",2.4,1,"Blu-ray","RED 2","RED 2"]
[182,"Reine Nervensache",null,null,null,null,null,null,null,null,null,"X",null,null,null,null,null,null,null,null,null,null,99,1999,12,"Dolby Digital 5.1","Dolby Digital 5.1",1.85,1,"DVD","Analyze This","Reine Nervensache"]
[183,"Reservoir Dogs - Wilde Hunde",null,"X",null,null,null,null,null,null,null,null,null,null,null,null,null,null,null,"X",null,null,94,1992,18,"Dolby Digital 5.1","Dolby Digital 5.1",2.35,2,"DVD","Reservoir Dogs","Reservoir Dogs"]
[184,"Resident Evil",null,null,null,null,null,null,null,null,"X",null,null,null,null,null,null,null,null,null,null,"X",97,2002,16,"DTS 6.1-ES","DTS 6.1-ES",1.85,2,"DVD","Resident Evil","Resident Evil 1"]
[185,"Resident Evil: Apocalypse",null,"X",null,null,null,null,null,null,"X",null,null,null,null,null,null,null,null,null,null,null,94,2004,18,"DTS 5.1","Dolby Digital 5.1",2.4,2,"DVD","Resident Evil: Apocalypse","Resident Evil 2"]
[186,"Resident Evil: Extinction",null,"X",null,null,null,null,null,null,"X",null,null,null,null,null,null,"X",null,null,null,null,92,2007,18,"DTS 5.1","Dolby Digital 5.1",2.4,2,"DVD","Resident Evil: Extinction","Resident Evil 3"]
[187,"Resident Evil: Afterlife",null,"X",null,null,null,null,null,null,"X",null,null,null,null,null,null,"X",null,"X",null,null,93,2010,16,"DTS 5.1","Dolby Digital 5.1",2.4,1,"DVD","Resident Evil: Afterlife","Resident Evil 4"]
[188,"Resident Evil: Retribution",null,"X",null,null,null,null,null,null,"X",null,null,null,null,null,null,"X",null,"X",null,null,96,2012,16,"DTS-HD Master Audio 5.1","DTS-HD Master Audio 5.1",2.4,2,"3D Blu-ray","Resident Evil: Retribution","Resident Evil 5"]
[189,"Resident Evil: The Final Chapter",null,"X",null,null,null,null,null,null,"X",null,null,null,null,null,null,"X",null,"X",null,null,107,2016,16,"DTS-HD High Resolution 7.1","DTS-HD High Resolution 7.1",2.4,2,"3D Blu-ray","Resident Evil: The Final Chapter","Resident Evil 6"]
[190,"Riddick - Überleben ist seine Rache",null,"X",null,null,null,null,null,null,null,null,null,null,null,null,null,"X",null,"X",null,null,126,2013,16,"DTS-HD Master Audio 5.1","DTS-HD Master Audio 5.1",2.4,1,"Blu-ray","Riddick","Riddick"]
[191,"Ring",null,null,null,null,null,null,null,"X",null,null,null,null,null,null,null,null,null,"X",null,null,110,2002,16,"Dolby Digital 5.1","Dolby Digital 5.1",1.85,1,"DVD","Ring, The","Ring"]
[192,"Road Trip",null,null,null,null,null,null,null,null,null,"X",null,null,"X",null,null,null,null,null,null,null,94,2000,16,"Dolby Digital 5.1","Dolby Digital 5.1",1.78,1,"DVD","Road Trip","Road Trip"]
[{"$f":"A193+1","v":193},"Robin Hood - Helden in Strumpfhosen",null,null,null,null,null,null,null,null,null,"X",null,null,null,null,null,null,null,null,null,null,100,1993,6,"Dolby Digital 2.0 Surround","Dolby Digital 2.0 Surround",1.85,1,"DVD","Robin Hood: Men in Tights","Robin Hood - Helden in..."]
[194,"Robots",null,null,"X",null,null,null,null,null,null,"X",null,null,null,null,null,"X",null,null,null,null,86,2005,0,"Dolby Digital 5.1","Dolby Digital 5.1",1.85,1,"DVD","Robots","Robots"]
[195,"Rock - Entscheidung auf Alcatraz, The",null,"X",null,null,null,null,null,null,null,null,null,null,null,null,null,null,null,"X",null,null,130,1996,16,"Dolby Digital 5.1","Dolby Digital 5.1",2.35,1,"DVD","Rock, The","Rock"]
[196,"Rush Hour",null,"X",null,null,null,null,null,null,null,"X",null,null,null,null,null,null,null,null,null,null,94,1998,12,"Dolby Digital 5.1","Dolby Digital 5.1",2.35,1,"DVD","Rush Hour","Rush Hour 1"]
[197,"Rush Hour 2",null,"X",null,null,null,null,null,null,null,"X",null,null,null,null,null,null,null,null,null,null,87,2001,12,"Dolby Digital 6.1","Dolby Digital 6.1",2.35,1,"DVD","Rush Hour 2","Rush Hour 2"]
[198,"Scary Movie",null,null,null,null,null,null,null,null,"X","X",null,null,null,null,"X",null,null,null,null,null,85,2000,16,"DTS 5.1","Dolby Digital 5.1",2.35,1,"DVD","Scary Movie","Scary Movie 1"]
[199,"Scary Movie 2",null,"X",null,null,null,null,null,null,"X","X",null,null,null,null,null,null,null,null,null,null,85,2001,16,"DTS 5.1","Dolby Digital 5.1",1.85,2,"DVD","Scary Movie 2","Scary Movie 2"]
[200,"Scary Movie 3",null,null,null,null,null,null,null,null,"X","X",null,null,null,null,null,"X",null,null,null,null,81,2003,12,"Dolby Digital 5.1","Dolby Digital 5.1",1.85,1,"DVD","Scary Movie 3","Scary Movie 3"]
[201,"Scary Movie 4",null,null,null,null,null,null,null,null,"X","X",null,null,null,null,null,"X",null,null,null,null,86,2006,12,"Dolby Digital 5.1","Dolby Digital 5.1",1.85,1,"DVD","Scary Movie 4","Scary Movie 4"]
[202,"Schmale Grat, Der",null,"X",null,null,"X",null,null,null,null,null,"X",null,null,null,null,null,null,null,null,null,164,1998,16,"Dolby Digital 5.1","Dolby Digital 5.1",2.35,1,"DVD","Thin Red Line, The","Schmale Grat"]
[203,"Schuh Des Manitu, Der",null,null,null,null,null,null,null,null,null,"X",null,null,null,null,null,null,null,null,"X",null,82,2001,12,"DTS 5.1","-",2.2000000000000002,2,"DVD","Schuh Des Manitu, Der","Schuh Des Manitu"]
[204,"Schuh Des Manitu, Der",null,null,null,null,null,null,null,null,null,"X",null,null,null,null,null,null,null,null,"X",null,85,2001,6,"DTS-HD High Resolution 5.1","-",2.35,1,"Blu-ray","Schuh Des Manitu, Der","Schuh Des Manitu"]
[205,"Scooby-Doo","X",null,null,null,null,null,"X",null,null,"X",null,null,null,null,null,null,null,null,null,null,83,2002,6,"Dolby Digital 5.1","Dolby Digital 5.1",1.85,1,"DVD","Scooby-Doo","Scooby-Doo 1"]
[206,"Scooby Doo 2 - Die Monster sind los","X",null,null,null,null,null,null,null,null,"X",null,null,null,null,"X",null,null,null,null,null,89,2004,6,"Dolby Digital 5.1","Dolby Digital 5.1",1.85,1,"DVD","Scooby-Doo 2: Monsters Unleashed","Scooby-Doo 2"]
[207,"Scott Pilgrim gegen den Rest der Welt",null,"X",null,null,null,null,"X",null,null,"X",null,null,"X",null,null,null,null,null,null,null,112,2010,12,"DTS 5.1","DTS-HD Master Audio 5.1",1.85,1,"Blu-ray","Scott Pilgrim vs. the World","Scott Pilgrim"]
[208,"Secretary",null,null,null,null,"X","X",null,null,null,null,null,null,null,null,null,null,null,null,null,null,106,2002,16,"DTS 5.1","Dolby Digital 5.1",1.85,1,"DVD","Secretary","Secretary"]
[209,"Sherlock Holmes",null,"X",null,null,null,null,null,null,null,null,null,"X",null,null,null,null,null,null,null,null,129,2009,12,"Dolby Digital 5.1","DTS-HD Master Audio 5.1",1.78,1,"Blu-ray","Sherlock Holmes","Sherlock Holmes 1"]
[210,"Sherlock Holmes - Spiel im Schatten","X","X",null,null,null,null,null,null,null,null,null,"X",null,null,null,null,null,null,null,null,129,2011,12,"Dolby Digital 5.1","DTS-HD Master Audio 5.1",2.4,1,"Blu-ray","Sherlock Holmes: A Game of Shadows","Sherlock Holmes 2"]
[211,"Showtime",null,"X",null,null,null,null,null,null,null,"X",null,null,null,null,null,null,null,null,null,null,92,2002,12,"Dolby Digital 5.1","Dolby Digital 5.1",2.35,1,"DVD","Showtime","Showtime"]
[212,"Shrek - Der tollkühne Held",null,null,"X",null,null,null,"X",null,null,null,null,null,null,null,null,null,null,null,null,null,90,2001,0,"Dolby Digital 5.1","Dolby Digital 5.1",1.78,2,"DVD","Shrek","Shrek 1"]
[213,"Shrek 2 - Der tollkühne Held kehrt zurück","X",null,"X",null,null,null,"X",null,null,"X",null,null,null,null,null,null,null,null,null,null,89,2004,6,"Dolby Digital 5.1","Dolby Digital 5.1",1.85,2,"DVD","Shrek 2","Shrek 2"]
[214,"Sieben",null,null,null,null,null,null,null,null,null,null,null,null,null,null,null,null,null,"X",null,null,124,1995,16,"DTS 5.1","Dolby Digital 5.1",2.35,1,"DVD","Se7en","Sieben"]
[215,"Simpsons - Der Film, Die",null,null,"X",null,null,null,null,null,null,"X",null,null,null,null,null,null,null,null,null,null,83,2007,6,"DTS 5.1","Dolby Digital 5.1",2.4,1,"DVD","Simpsons Movie, The","Simpsons"]
[216,"Sin City",null,"X",null,null,null,null,null,null,null,null,null,null,null,null,null,null,null,"X",null,null,119,2005,18,"Dolby Digital 5.1","Dolby Digital 5.1",1.85,1,"DVD","Sin City","Sin City"]
[217,"Soldat James Ryan, Der",null,"X",null,null,"X",null,null,null,null,null,"X",null,null,null,null,null,null,null,null,null,163,1998,16,"Dolby Digital 5.1","Dolby Digital 5.1",1.78,2,"DVD","Saving Private Ryan","Soldat James Ryan"]
[218,"Star Trek: Der Film","X","X",null,null,null,null,null,null,null,null,null,null,null,null,null,"X",null,null,null,null,132,1979,12,"Dolby Digital 2.0 Surround","Dolby TrueHD 7.1",2.35,1,"Blu-ray","Star Trek: The Motion Picture","Star Trek 01"]
[219,"Star Trek: Der Zorn des Khan","X","X",null,null,null,null,null,null,null,null,null,null,null,null,null,"X",null,null,null,null,113,1982,12,"Dolby Digital 2.0 Surround","Dolby TrueHD 7.1",2.4,1,"Blu-ray","Star Trek II: The Wrath of Khan","Star Trek 02"]
[220,"Star Trek: Auf der Suche nach Mr. Spock","X","X",null,null,null,null,null,null,null,null,null,null,null,null,null,"X",null,null,null,null,105,1984,12,"Dolby Digital 2.0 Surround","Dolby TrueHD 7.1",2.35,1,"Blu-ray","Star Trek III: The Search for Spock","Star Trek 03"]
[221,"Star Trek: Zurück in die Gegenwart","X",null,null,null,null,null,null,null,null,"X",null,null,null,null,null,"X",null,null,null,null,119,1986,12,"Dolby Digital 2.0 Surround","Dolby TrueHD 7.1",2.35,1,"Blu-ray","Star Trek IV: The Voyage Home","Star Trek 04"]
[222,"Star Trek: Am Rande des Universums","X","X",null,null,null,null,null,null,null,null,null,null,null,null,null,"X",null,null,null,null,106,1989,12,"Dolby Digital 5.1","Dolby TrueHD 7.1",2.4,1,"Blu-ray","Star Trek V: The Final Frontier","Star Trek 05"]
[223,"Star Trek: Das unentdeckte Land","X","X",null,null,null,null,null,null,null,null,null,null,null,null,null,"X",null,null,null,null,110,1991,12,"Dolby Digital 5.1","Dolby TrueHD 7.1",2.35,1,"Blu-ray","Star Trek VI: The Undiscovered Country","Star Trek 06"]
[224,"Star Trek: Treffen der Generationen","X","X",null,null,null,null,null,null,null,null,null,null,null,null,null,"X",null,null,null,null,118,1994,12,"Dolby Digital 5.1","Dolby TrueHD 5.1",2.35,1,"Blu-ray","Star Trek: Generations","Star Trek 07"]
[225,"Star Trek: Der erste Kontakt",null,null,null,null,null,null,null,null,null,null,null,null,null,null,null,"X",null,null,null,null,111,1996,12,"Dolby Digital 5.1","Dolby TrueHD 5.1",2.35,1,"Blu-ray","Star Trek: First Contact","Star Trek 08"]
[226,"Star Trek: Der Aufstand",null,null,null,null,null,null,null,null,null,null,null,null,null,null,null,"X",null,null,null,null,103,1998,12,"Dolby Digital 5.1","Dolby TrueHD 5.1",2.35,1,"Blu-ray","Star Trek: Insurrection","Star Trek 09"]
[227,"Star Trek: Nemesis",null,"X",null,null,null,null,null,null,null,null,null,null,null,null,null,"X",null,null,null,null,116,2002,12,"Dolby Digital 5.1","Dolby TrueHD 5.1",2.35,1,"Blu-ray","Star Trek: Nemesis","Star Trek 10"]
[228,"Star Trek",null,"X",null,null,null,null,null,null,null,null,null,null,null,null,null,"X",null,null,null,null,127,2009,12,"Dolby Digital 5.1","Dolby TrueHD 5.1",2.4,1,"Blu-ray","Star Trek","Star Trek 11"]
[229,"Star Trek: Into Darkness","X","X",null,null,null,null,null,null,null,null,null,null,null,null,null,"X",null,null,null,null,132,2013,12,"Dolby TrueHD 7.1","Dolby TrueHD 7.1",2.4,1,"Blu-ray","Star Trek into Darkness","Star Trek 12"]
[230,"Star Trek: Beyond","X","X",null,null,null,null,null,null,null,null,null,null,null,null,null,"X",null,null,null,null,122,2016,12,"Dolby Digital 5.1","Dolby Atmos 7.1.4",2.39,1,"Blu-ray","Star Trek Beyond","Star Trek 13"]
[231,"Star Wars: Episode I - Die Dunkle Bedrohung","X","X",null,null,null,null,null,null,null,null,null,null,null,null,null,"X",null,null,null,null,130,1999,6,"Dolby Digital 6.1","Dolby Digital 6.1",2.35,2,"DVD","Star Wars: Episode I - The Phantom Menace","Star Wars 1"]
[232,"Star Wars: Episode I - Die Dunkle Bedrohung","X","X",null,null,null,null,null,null,null,null,null,null,null,null,null,"X",null,null,null,null,136,1999,6,"DTS-HD Master Audio 5.1","DTS-ES Discrete 6.1",2.35,1,"Blu-ray","Star Wars: Episode I - The Phantom Menace","Star Wars 1"]
[233,"Star Wars: Episode II - Angriff Der Klonkrieger",null,"X",null,null,null,null,null,null,null,null,null,null,null,null,null,"X",null,null,null,null,137,2002,12,"Dolby Digital 6.1","Dolby Digital 6.1",2.35,2,"DVD","Star Wars: Episode II - Attack of the Clones","Star Wars 2"]
[234,"Star Wars: Episode II - Angriff Der Klonkrieger",null,"X",null,null,null,null,null,null,null,null,null,null,null,null,null,"X",null,null,null,null,142,2002,12,"DTS-HD Master Audio 5.1","DTS-ES Discrete 6.1",2.35,1,"Blu-ray","Star Wars: Episode II - Attack of the Clones","Star Wars 2"]
[235,"Star Wars: Episode III - Die Rache der Sith",null,"X",null,null,null,null,null,null,null,null,null,null,null,null,null,"X",null,null,null,null,134,2005,12,"Dolby Digital 6.1","Dolby Digital 6.1",2.35,2,"DVD","Star Wars: Episode III - Revenge of the Sith","Star Wars 3"]
[236,"Star Wars: Episode III - Die Rache der Sith",null,"X",null,null,null,null,null,null,null,null,null,null,null,null,null,"X",null,null,null,null,140,2005,12,"DTS-HD Master Audio 5.1","DTS-ES Discrete 6.1",2.35,1,"Blu-ray","Star Wars: Episode III - Revenge of the Sith","Star Wars 3"]
[237,"Star Wars: Episode IV - Eine Neue Hoffnung",null,null,null,null,null,null,null,null,null,null,null,null,null,null,null,"X",null,null,null,null,120,1977,6,"Dolby Digital 6.1","Dolby Digital 6.1",2.35,1,"DVD","Star Wars: Episode IV - A New Hope","Star Wars 4"]
[238,"Star Wars: Episode IV - Eine Neue Hoffnung",null,null,null,null,null,null,null,null,null,null,null,null,null,null,null,"X",null,null,null,null,125,1977,6,"DTS-HD Master Audio 5.1","DTS-ES Discrete 6.1",2.35,1,"Blu-ray","Star Wars: Episode IV - A New Hope","Star Wars 4"]
[239,"Star Wars: Episode V - Das Imperium Schlägt Zurück",null,null,null,null,null,null,null,null,null,null,null,null,null,null,null,"X",null,null,null,null,124,1980,12,"Dolby Digital 6.1","Dolby Digital 6.1",2.35,1,"DVD","Star Wars: Episode V - The Empire Strikes Back","Star Wars 5"]
[240,"Star Wars: Episode V - Das Imperium Schlägt Zurück",null,null,null,null,null,null,null,null,null,null,null,null,null,null,null,"X",null,null,null,null,127,1980,12,"DTS-HD Master Audio 5.1","DTS-ES Discrete 6.1",2.35,1,"Blu-ray","Star Wars: Episode V - The Empire Strikes Back","Star Wars 5"]
[241,"Star Wars: Episode VI - Die Rückkehr Der Jedi-Ritter",null,null,null,null,null,null,null,null,null,null,null,null,null,null,null,"X",null,null,null,null,131,1983,12,"Dolby Digital 6.1","Dolby Digital 6.1",2.35,1,"DVD","Star Wars: Episode VI - Return Of The Jedi","Star Wars 6"]
[242,"Star Wars: Episode VI - Die Rückkehr Der Jedi-Ritter",null,null,null,null,null,null,null,null,null,null,null,null,null,null,null,"X",null,null,null,null,135,1983,12,"DTS-HD Master Audio 5.1","DTS-ES Discrete 6.1",2.35,1,"Blu-ray","Star Wars: Episode VI - Return Of The Jedi","Star Wars 6"]
[243,"Starship Troopers",null,"X",null,null,null,null,null,null,null,null,"X",null,null,null,null,"X","X",null,null,null,124,1997,18,"Dolby Digital 5.1","Dolby Digital 5.1",1.85,1,"DVD","Starship Troopers","Starship Troopers"]
[244,"Starship Troopers",null,"X",null,null,null,null,null,null,null,null,"X",null,null,null,null,"X","X",null,null,null,129,1997,16,"DTS 5.1","Dolby Digital 5.1",1.85,1,"Blu-ray","Starship Troopers","Starship Troopers"]
[245,"Starsky & Hutch - Die Zwei stehen ihren Mann",null,"X",null,null,null,null,null,null,null,"X",null,null,null,null,null,null,null,null,null,null,96,2004,16,"Dolby Digital 5.1","Dolby Digital 5.1",2.35,1,"DVD","Starsky & Hutch","Starsky & Hutch"]
[246,"Sucker Punch",null,"X",null,null,"X",null,"X",null,null,null,null,null,null,null,null,null,null,null,null,null,127,2011,16,"DTS-HD Master Audio 5.1","DTS-HD Master Audio 5.1",2.4,2,"Blu-ray","Sucker Punch","Sucker Punch"]
[247,"Super Süß Und Super Sexy",null,null,null,null,null,null,null,null,null,"X",null,null,"X",null,null,null,null,null,null,null,87,2002,12,"Dolby Digital 5.1","Dolby Digital 5.1",1.85,1,"DVD","Sweetest Thing, The","Super Süß Und Super Sexy"]
[248,"Surrogates - Mein zweites Ich",null,"X",null,null,null,null,null,null,null,null,null,null,null,null,null,"X",null,"X",null,null,88,2009,12,"DTS 5.1","DTS-HD Master Audio 5.1",2.4,1,"Blu-ray","Surrogates","Surrogates"]
[249,"Sweet Home Alabama - Liebe auf Umwegen",null,null,null,null,null,null,null,null,null,"X",null,null,"X",null,null,null,null,null,null,null,104,2002,0,"Dolby Digital 5.1","Dolby Digital 5.1",2.35,1,"DVD","Sweet Home Alabama","Sweet Home Alabama"]
[250,"Teuflisch",null,null,null,null,null,null,"X",null,null,"X",null,null,null,null,null,null,null,null,null,null,90,2000,12,"Dolby Digital 5.1","Dolby Digital 5.1",2.35,1,"DVD","Bedazzled","Teuflisch"]
[251,"Thank You for Smoking",null,null,null,null,null,null,null,null,null,"X",null,null,null,null,null,null,null,null,null,null,88,2005,12,"Dolby Digital 5.1","Dolby Digital 5.1",2.4,1,"DVD","Thank You for Smoking","Thank You for Smoking"]
[252,"Totale Erinnerung - Total Recall, Die",null,"X",null,null,null,null,null,null,null,null,null,null,null,null,null,"X",null,"X",null,null,113,1990,18,"DTS-HD Master Audio 5.1","DTS-HD Master Audio 5.1",1.85,1,"Blu-ray","Total Recall","Total Recall"]
[253,"Tränen der Sonne",null,"X",null,null,"X",null,null,null,null,null,"X",null,null,null,null,null,null,"X",null,null,137,2003,16,"Dolby Digital 5.1","Dolby Digital 5.1",2.4,1,"DVD","Tears of the Sun","Tränen der Sonne"]
[254,"(T)Raumschiff Surprise - Periode 1",null,null,null,null,null,null,null,null,null,"X",null,null,null,null,null,"X",null,null,null,null,84,2004,6,"DTS 6.1-ES","-",2.2000000000000002,2,"DVD","(T)Raumschiff Surprise - Periode 1","Traumschiff Surprise"]
[255,"Truman Show, Die",null,null,null,null,"X",null,null,null,null,"X",null,null,null,null,null,null,null,null,null,null,99,1998,12,"Dolby Digital 5.1","Dolby Digital 5.1",1.85,1,"DVD","Truman Show, The","Truman Show"]
[256,"UHF - Sender mit beschränkter Hoffnung",null,null,null,null,null,null,null,null,null,"X",null,null,null,null,null,null,null,null,null,null,93,1989,12,"Dolby Digital 2.0 Surround","Dolby Digital 2.0 Surround",1.85,1,"DVD","UHF","UHF"]
[{"$f":"A257+1","v":257},"Ultraviolet",null,"X",null,null,null,null,null,null,null,null,null,null,null,null,null,"X",null,"X",null,null,87,2006,12,"Dolby Digital 5.1","Dolby Digital 5.1",1.85,1,"Blu-ray","Ultraviolet","Ultraviolet"]
[258,"Untergang, Der",null,null,null,null,"X",null,null,null,null,null,"X",null,null,null,null,null,null,null,null,null,150,2004,12,"DTS 5.1","-",1.78,2,"DVD","Untergang, Der","Untergang"]
[259,"Urteil - Jeder ist käuflich, Das",null,null,null,null,null,null,null,null,null,null,null,null,null,null,null,null,null,"X",null,null,122,2003,12,"Dolby Digital 5.1","Dolby Digital 5.1",2.35,1,"DVD","Runaway Jury, The","Urteil"]
[260,"U-Turn - Kein Weg zurück",null,null,null,null,null,null,null,null,null,null,null,null,null,null,null,null,null,"X",null,null,120,1997,18,"Dolby Digital 5.1","Dolby Digital 5.1",1.85,1,"DVD","U-Turn","U-Turn"]
[261,"Valerian - Die Stadt der tausend Planeten","X","X",null,null,null,null,null,null,null,null,null,null,null,null,null,"X",null,null,null,null,137,2017,12,"Dolby Atmos 7.1.4","Dolby Atmos 7.1.4",2.4,1,"3D Blu-ray","Valerian and the City of a Thousand Planets","Valerian"]
[262,"Varsity Blues",null,null,null,null,"X",null,null,null,null,"X",null,null,null,null,null,null,null,null,null,null,100,1999,12,"Dolby Digital 5.1","Dolby Digital 5.1",1.78,1,"DVD","Varsity Blues","Varsity Blues"]
[263,"Verrückt nach Mary",null,null,null,null,null,null,null,null,null,"X",null,null,"X",null,null,null,null,null,null,null,114,1998,12,"Dolby Digital 5.1","Dolby Digital 5.1",1.85,1,"DVD","There's something about Mary","Verrückt nach Mary"]
[264,"Very Bad Things",null,null,null,null,"X",null,null,null,null,"X",null,null,null,null,null,null,null,null,null,null,96,1998,18,"Dolby Digital 5.1","Dolby Digital 2.0 Surround",1.33,1,"DVD","Very Bad Things","Very Bad Things"]
[265,"Voll Verheiratet",null,null,null,null,null,null,null,null,null,"X",null,null,"X",null,null,null,null,null,null,null,90,2003,6,"Dolby Digital 5.1","Dolby Digital 5.1",1.85,1,"DVD","Just Married","Voll Verheiratet"]
[266,"Wag the Dog - Wenn der Schwanz mit dem Hund wedelt",null,null,null,null,"X",null,null,null,null,"X",null,null,null,null,null,null,null,"X",null,null,93,1997,12,"Dolby Digital 5.1","Dolby Digital 5.1",1.85,1,"DVD","Wag The Dog","Wag the Dog"]
[267,"WALL·E - Der Letzte räumt die Erde auf",null,null,"X",null,null,null,null,null,null,"X",null,null,"X",null,null,"X",null,null,null,null,95,2008,0,"Dolby Digital 6.1","Dolby Digital 6.1",2.39,2,"DVD","WALL·E","WALL·E"]
[268,"Werner - Beinhart!",null,null,"X",null,null,null,null,null,null,"X",null,null,null,null,null,null,null,null,null,null,93,1990,6,"Dolby Digital 5.1","-",1.85,1,"DVD","Werner - Beinhart!","Werner 1"]
[269,"Werner - Das muss kesseln!!!",null,null,"X",null,null,null,null,null,null,"X",null,null,null,null,null,null,null,null,null,null,89,1996,6,"Dolby Digital 2.0 Surround","-",1.85,1,"DVD","Werner - Das muss kesseln!!!","Werner 2"]
[270,"Werner - Volles Rooäää!!!",null,null,"X",null,null,null,null,null,null,"X",null,null,null,null,null,null,null,null,null,null,80,1999,6,"Dolby Digital 5.1","-",1.85,1,"DVD","Werner - Volles Rooäää!!! - Fäkalstau in Knöllerup","Werner 3"]
[271,"Werner - Gekotzt wird später!",null,null,"X",null,null,null,null,null,null,"X",null,null,null,null,null,null,null,null,null,null,80,2003,6,"DTS 5.1","-",1.85,1,"DVD","Werner - Gekotzt wird später!","Werner 4"]
[272,"Wie werde ich ihn los - in 10 Tagen",null,null,null,null,null,null,null,null,null,"X",null,null,"X",null,null,null,null,null,null,null,112,2003,6,"Dolby Digital 5.1","Dolby Digital 5.1",1.78,1,"DVD","How to Lose a Guy in 10 Days","Wie werde ich ihn..."]
[273,"Wild Wild West",null,"X",null,null,null,null,null,null,null,null,null,null,null,null,null,"X",null,null,"X",null,102,1999,12,"Dolby Digital 5.1","Dolby Digital 5.1",1.85,1,"DVD","Wild Wild West","Wild Wild West"]
[274,"Wir Waren Helden",null,null,null,null,"X",null,null,null,null,null,"X",null,null,null,null,null,null,null,null,null,133,2002,18,"DTS 5.1","Dolby Digital 5.1",2.35,2,"DVD","We were Soldiers","Wir Waren Helden"]
[275,"Wixxer, Der",null,null,null,null,null,null,null,null,null,"X",null,"X",null,null,null,null,null,null,null,null,83,2004,12,"Dolby Digital 5.1","-",2.35,2,"DVD","Wixxer, Der","Wixxer 1"]
[276,"Neues vom Wixxer",null,null,null,null,null,null,null,null,null,"X",null,"X",null,null,null,null,null,null,null,null,94,2007,6,"Dolby Digital 5.1","-",2.35,2,"DVD","Neues vom Wixxer","Wixxer 2"]
[277,"Zoomania",null,null,"X",null,null,null,null,null,null,"X",null,"X",null,null,null,null,null,null,null,null,108,2016,0,"DTS-HD High Resolution 7.1","DTS-HD Master Audio 7.1",2.39,2,"3D Blu-ray","Zootopia","Zoomania"]
[278,"Zurück in die Zukunft",null,null,null,null,null,null,null,null,null,"X",null,null,null,null,null,"X",null,null,null,null,116,1985,12,"DTS 5.1","DTS-HD Master Audio 5.1",1.85,1,"Blu-ray","Back to the Future","Zurück in die Zukunft 1"]
[279,"Zurück in die Zukunft II","X",null,null,null,null,null,null,null,null,"X",null,null,null,null,null,"X",null,null,null,null,108,1989,12,"DTS 5.1","DTS-HD Master Audio 5.1",1.85,1,"Blu-ray","Back to the Future Part II","Zurück in die Zukunft 2"]
[280,"Zurück in die Zukunft III",null,null,null,null,null,null,null,null,null,"X",null,null,null,null,null,"X",null,null,null,null,118,1990,12,"DTS 5.1","DTS-HD Master Audio 5.1",1.85,1,"Blu-ray","Back to the Future Part III","Zurück in die Zukunft 3"]
[281]
[282]
[283]
[284]
[285]
[286]
[287]
[288]
[289]
[290]
[291]
[292]
[293]
[294]
[295]
[296]
[297]
[298]
[299]
[300]

{"sheet":"Serien","index":1,"n_rows":101,"n_cols":32,"rows_kept":101,"cut":false,"hidden":false,"merged":[]}
[null,"Titel","Abenteuer","Action","Animation","Comedy","Dokumentation","Drama","Erotik","Fantasy","Grusel","Horror","Komödie","Krieg","Krimi","Liebe/Romantik","Musik","Mystery","Science-Fiction","Splatter","Thriller","Western","Zombies","Länge","FSK","Tonformat Deutsch","Tonformat Englisch","Bildformat (x:1)","Anzahl Discs","Medientyp","Orginaltitel","Sortierschlüssel"]
[{"$f":"A1+1","v":1},"Big Bang Theory, The (Season 1)",null,null,null,null,null,null,null,null,null,null,"X",null,null,null,null,null,null,null,null,null,null,354,6,"Dolby Digital 2.0 Stereo","DTS-HD Master Audio 5.1",1.78,2,"Blu-ray","Big Bang Theory, The","BigB01"]
[2,"Big Bang Theory, The (Season 2)",null,null,null,null,null,null,null,null,null,null,"X",null,null,null,null,null,null,null,null,null,null,502,6,"Dolby Digital 2.0 Stereo","DTS-HD Master Audio 5.1",1.78,2,"Blu-ray","Big Bang Theory, The","BigB02"]
[3,"Big Bang Theory, The (Season 3)",null,null,null,null,null,null,null,null,null,null,"X",null,null,null,null,null,null,null,null,null,null,472,12,"Dolby Digital 2.0 Stereo","Dolby Digital 5.1",1.78,2,"Blu-ray","Big Bang Theory, The","BigB03"]
[4,"Big Bang Theory, The (Season 4)",null,null,null,null,null,null,null,null,null,null,"X",null,null,null,null,null,null,null,null,null,null,501,12,"Dolby Digital 2.0 Stereo","DTS-HD Master Audio 5.1",1.78,2,"Blu-ray","Big Bang Theory, The","BigB04"]
[5,"Big Bang Theory, The (Season 5)",null,null,null,null,null,null,null,null,null,null,"X",null,null,null,null,null,null,null,null,null,null,496,6,"Dolby Digital 2.0 Stereo","DTS-HD Master Audio 5.1",1.78,2,"Blu-ray","Big Bang Theory, The","BigB05"]
[6,"Big Bang Theory, The (Season 6)",null,null,null,null,null,null,null,null,null,null,"X",null,null,null,null,null,null,null,null,null,null,496,12,"Dolby Digital 2.0 Stereo","DTS-HD Master Audio 5.1",1.78,2,"Blu-ray","Big Bang Theory, The","BigB06"]
[7,"Big Bang Theory, The (Season 7)",null,null,null,null,null,null,null,null,null,null,"X",null,null,null,null,null,null,null,null,null,null,485,6,"Dolby Digital 5.1","DTS-HD Master Audio 5.1",1.78,2,"Blu-ray","Big Bang Theory, The","BigB07"]
[8,"Big Bang Theory, The (Season 8)",null,null,null,null,null,null,null,null,null,null,"X",null,null,null,null,null,null,null,null,null,null,478,12,"Dolby Digital 5.1","DTS-HD Master Audio 5.1",1.78,2,"Blu-ray","Big Bang Theory, The","BigB08"]
[9,"Big Bang Theory, The (Season 9)",null,null,null,null,null,null,null,null,null,null,"X",null,null,null,null,null,null,null,null,null,null,467,6,"Dolby Digital 5.1","DTS-HD Master Audio 5.1",1.78,2,"Blu-ray","Big Bang Theory, The","BigB09"]
[10,"Big Bang Theory, The (Season 10)",null,null,null,null,null,null,null,null,null,null,"X",null,null,null,null,null,null,null,null,null,null,485,12,"Dolby Digital 5.1","DTS-HD Master Audio 5.1",1.78,2,"Blu-ray","Big Bang Theory, The","BigB10"]
[11,"Big Bang Theory, The (Season 11)",null,null,null,null,null,null,null,null,null,null,"X",null,null,null,null,null,null,null,null,null,null,480,12,"Dolby Digital 5.1","DTS-HD Master Audio 5.1",1.78,2,"Blu-ray","Big Bang Theory, The","BigB11"]
[12,"Big Bang Theory, The (Season 12)",null,null,null,null,null,null,null,null,null,null,"X",null,null,null,null,null,null,null,null,null,null,480,6,"Dolby Digital 5.1","DTS-HD Master Audio 5.1",1.78,2,"Blu-ray","Big Bang Theory, The","BigB12"]
[13,"Buffy - Im Bann der Dämonen (Season 1)",null,null,null,null,null,"X",null,null,null,"X","X",null,null,null,null,null,null,null,null,null,null,528,16,"Dolby Digital 2.0 Surround","Dolby Digital 2.0 Surround",1.33,3,"DVD","Buffy the Vampire Slayer ","Buff01"]
[14,"Buffy - Im Bann der Dämonen (Season 2.1)",null,null,null,null,null,"X",null,null,null,"X","X",null,null,null,null,null,null,null,null,null,null,528,16,"Dolby Digital 2.0 Surround","Dolby Digital 2.0 Surround",1.33,3,"DVD","Buffy the Vampire Slayer ","Buff02"]
[15,"Buffy - Im Bann der Dämonen (Season 2.2)",null,null,null,null,null,"X",null,null,null,"X","X",null,null,null,null,null,null,null,null,null,null,435,16,"Dolby Digital 2.0 Surround","Dolby Digital 2.0 Surround",1.33,3,"DVD","Buffy the Vampire Slayer ","Buff03"]
[16,"Buffy - Im Bann der Dämonen (Season 3.1)",null,null,null,null,null,"X",null,null,null,"X","X",null,null,null,null,null,null,null,null,null,null,495,16,"Dolby Digital 2.0 Surround","Dolby Digital 2.0 Surround",1.33,3,"DVD","Buffy the Vampire Slayer ","Buff04"]
[17,"Buffy - Im Bann der Dämonen (Season 3.2)",null,null,null,null,null,"X",null,null,null,"X","X",null,null,null,null,null,null,null,null,null,null,495,16,"Dolby Digital 2.0 Surround","Dolby Digital 2.0 Surround",1.33,3,"DVD","Buffy the Vampire Slayer ","Buff05"]
[18,"Buffy - Im Bann der Dämonen (Season 4.1)",null,null,null,null,null,"X",null,null,null,"X","X",null,null,null,null,null,null,null,null,null,null,495,16,"Dolby Digital 2.0 Surround","Dolby Digital 2.0 Surround",1.78,3,"DVD","Buffy the Vampire Slayer ","Buff06"]
[19,"Buffy - Im Bann der Dämonen (Season 4.2)",null,null,null,null,null,"X",null,null,null,"X","X",null,null,null,null,null,null,null,null,null,null,495,16,"Dolby Digital 2.0 Surround","Dolby Digital 2.0 Surround",1.78,3,"DVD","Buffy the Vampire Slayer ","Buff07"]
[20,"Buffy - Im Bann der Dämonen (Season 5.1)",null,null,null,null,null,"X",null,null,null,"X","X",null,null,null,null,null,null,null,null,null,null,495,16,"Dolby Digital 2.0 Surround","Dolby Digital 2.0 Surround",1.78,3,"DVD","Buffy the Vampire Slayer ","Buff08"]
[21,"Buffy - Im Bann der Dämonen (Season 5.2)",null,null,null,null,null,"X",null,null,null,"X","X",null,null,null,null,null,null,null,null,null,null,495,16,"Dolby Digital 2.0 Surround","Dolby Digital 2.0 Surround",1.78,3,"DVD","Buffy the Vampire Slayer ","Buff09"]
[22,"Buffy - Im Bann der Dämonen (Season 6.1)",null,null,null,null,null,"X",null,null,null,"X","X",null,null,null,null,null,null,null,null,null,null,495,16,"Dolby Digital 2.0 Surround","Dolby Digital 2.0 Surround",1.78,3,"DVD","Buffy the Vampire Slayer ","Buff10"]
[23,"Buffy - Im Bann der Dämonen (Season 6.2)",null,null,null,null,null,"X",null,null,null,"X","X",null,null,null,null,null,null,null,null,null,null,495,16,"Dolby Digital 2.0 Surround","Dolby Digital 2.0 Surround",1.78,3,"DVD","Buffy the Vampire Slayer ","Buff11"]
[24,"Buffy - Im Bann der Dämonen (Season 7.1)",null,null,null,null,null,"X",null,null,null,"X","X",null,null,null,null,null,null,null,null,null,null,479,16,"Dolby Digital 2.0 Surround","Dolby Digital 2.0 Surround",1.78,3,"DVD","Buffy the Vampire Slayer ","Buff12"]
[25,"Buffy - Im Bann der Dämonen (Season 7.2)",null,null,null,null,null,"X",null,null,null,"X","X",null,null,null,null,null,null,null,null,null,null,479,16,"Dolby Digital 2.0 Surround","Dolby Digital 2.0 Surround",1.78,3,"DVD","Buffy the Vampire Slayer ","Buff13"]
[26,"Bullyparade",null,null,null,"X",null,null,null,null,null,null,null,null,null,null,null,null,null,null,null,null,null,220,12,"Dolby Digital 5.1","-",1.33,2,"DVD","Welcome To The Fabulous Bullyparade","Bully"]
[27,"Doctor Who - Die kompletten Specials","X",null,null,null,null,null,null,null,null,null,null,null,null,null,null,null,"X",null,null,null,null,305,12,"DTS-HD High Resolution 5.1","DTS-HD High Resolution 5.1",1.78,5,"Blu-ray","Doctor Who","Doctor Who Specials"]
[28,"EUReKA - Die geheime Stadt",null,null,null,null,null,null,null,null,null,null,"X",null,null,null,null,"X","X",null,null,null,null,3391,12,"DTS-HD High Resolution 5.1","DTS-HD Master Audio 5.1",1.78,18,"Blu-ray","Eureka","Eureka"]
[29,"Futurama (Season 1)",null,null,"X",null,null,null,null,null,null,null,"X",null,null,null,null,null,"X",null,null,null,null,299,12,"Dolby Digital 2.0 Surround","Dolby Digital 2.0 Surround",1.33,3,"DVD","Futurama","Futu01"]
[30,"Futurama (Season 2)",null,null,"X",null,null,null,null,null,null,null,"X",null,null,null,null,null,"X",null,null,null,null,437,12,"Dolby Digital 2.0 Surround","Dolby Digital 2.0 Surround",1.33,4,"DVD","Futurama","Futu02"]
[31,"Futurama (Season 3)",null,null,"X",null,null,null,null,null,null,null,"X",null,null,null,null,null,"X",null,null,null,null,459,12,"Dolby Digital 2.0 Surround","Dolby Digital 2.0 Surround",1.33,4,"DVD","Futurama","Futu03"]
[32,"Futurama (Season 4)",null,null,"X",null,null,null,null,null,null,null,"X",null,null,null,null,null,"X",null,null,null,null,414,12,"Dolby Digital 2.0 Surround","Dolby Digital 2.0 Surround",1.33,4,"DVD","Futurama","Futu04"]
[{"$f":"A33+1","v":33},"Futurama (Season 5)",null,null,"X",null,null,null,null,null,null,null,"X",null,null,null,null,null,"X",null,null,null,null,270,12,"Dolby Digital 2.0 Surround","Dolby Digital 5.1",1.78,2,"DVD","Futurama","Futu05"]
[34,"Futurama (Season 6)",null,null,"X",null,null,null,null,null,null,null,"X",null,null,null,null,null,"X",null,null,null,null,270,12,"Dolby Digital 2.0 Surround","Dolby Digital 5.1",1.78,2,"DVD","Futurama","Futu06"]
[35,"Futurama (Season 7)",null,null,"X",null,null,null,null,null,null,null,"X",null,null,null,null,null,"X",null,null,null,null,270,12,"Dolby Digital 5.1","Dolby Digital 5.1",1.78,2,"DVD","Futurama","Futu07"]
[36,"Futurama (Season 8)",null,null,"X",null,null,null,null,null,null,null,"X",null,null,null,null,null,"X",null,null,null,null,270,12,"Dolby Digital 5.1","Dolby Digital 5.1",1.78,2,"DVD","Futurama","Futu08"]
[37,"Jochen Malmsheimer - …fast das Gesamtwerk",null,null,null,"X",null,null,null,null,null,null,null,null,null,null,null,null,null,null,null,null,null,420,0,"Dolby Digital 2.0 Stereo","-",1.78,2,"DVD","Jochen Malmsheimer - …fast das Gesamtwerk","JochMalm1"]
[38,"Jochen Malmsheimer - …fast das Gesamtwerk - 1. Nachlieferung!",null,null,null,"X",null,null,null,null,null,null,null,null,null,null,null,null,null,null,null,null,null,340,0,"Dolby Digital 2.0 Stereo","-",1.78,2,"DVD","Jochen Malmsheimer - …fast das Gesamtwerk - 1. Nachlieferung!","JochMalm2"]
[39,"Loriot - Die vollständige Fernsehedition",null,null,null,null,null,null,null,null,null,null,"X",null,null,null,null,null,null,null,null,null,null,760,6,"Dolby Digital 2.0 Stereo","-",1.33,6,"DVD","Loriot","Loriot"]
[40,"Nackte Pistole!, Die",null,null,null,null,null,null,null,null,null,null,"X",null,null,null,null,null,null,null,null,null,null,144,12,"Dolby Digital 1.0 Mono","Dolby Digital 5.1",1.33,1,"DVD","Police Squad!","Police"]
[41,"Star Trek: Enterprise","X","X",null,null,null,null,null,null,null,null,null,null,null,null,null,null,"X",null,null,null,null,4121,12,"Dolby Digital 2.0 Surround","DTS-HD Master Audio 7.1",1.78,24,"Blu-ray","Star Trek: Enterprise","Star Trek ENT"]
[42,"Star Trek: Lower Decks (Season 1)","X",null,null,null,null,null,null,null,null,null,"X",null,null,null,null,null,"X",null,null,null,null,251,16,"Dolby Digital 5.1","Dolby Digital 5.1",1.78,2,"Blu-ray","Star Trek: Lower Decks","Star Trek LD 1"]
[43,"Star Trek: Lower Decks (Season 2)","X",null,null,null,null,null,null,null,null,null,"X",null,null,null,null,null,"X",null,null,null,null,255,16,"Dolby Digital 5.1","Dolby Digital 5.1",1.78,2,"Blu-ray","Star Trek: Lower Decks","Star Trek LD 2"]
[44,"Star Trek: Lower Decks (Season 3)","X",null,null,null,null,null,null,null,null,null,"X",null,null,null,null,null,"X",null,null,null,null,246,12,"Dolby Digital 5.1","DTS-HD High Resolution 5.1",1.78,2,"Blu-ray","Star Trek: Lower Decks","Star Trek LD 3"]
[45,"Star Trek: Lower Decks (Season 4)","X",null,null,null,null,null,null,null,null,null,"X",null,null,null,null,null,"X",null,null,null,null,256,12,"Dolby Digital 5.1","DTS-HD High Resolution 5.1",1.78,2,"Blu-ray","Star Trek: Lower Decks","Star Trek LD 4"]
[46,"Star Trek: Lower Decks (Season 5)","X",null,null,null,null,null,null,null,null,null,"X",null,null,null,null,null,"X",null,null,null,null,266,16,"Dolby Digital 5.1","DTS-HD Master Audio 5.1",1.78,2,"Blu-ray","Star Trek: Lower Decks","Star Trek LD 5"]
[47,"Star Trek: Picard (Season 1)",null,null,null,null,null,"X",null,null,null,null,null,null,null,null,null,null,"X",null,null,null,null,487,16,"Dolby Digital 5.1","DTS-HD Master Audio 5.1",2.39,3,"Blu-ray","Star Trek: Picard","Star Trek PIC 1"]
[48,"Star Trek: Picard (Season 2)",null,null,null,null,null,"X",null,null,null,null,null,null,null,null,null,null,"X",null,null,null,null,474,12,"Dolby Digital 5.1","DTS-HD Master Audio 5.1",2.39,3,"Blu-ray","Star Trek: Picard","Star Trek PIC 2"]
[49,"Star Trek: Picard (Season 3)",null,null,null,null,null,"X",null,null,null,null,null,null,null,null,null,null,"X",null,null,null,null,532,16,"Dolby Digital 5.1","DTS-HD Master Audio 5.1",2.39,3,"Blu-ray","Star Trek: Picard","Star Trek PIC 3"]
[50,"Star Trek - The Next Generation",null,null,null,null,null,null,null,null,null,null,null,null,null,null,null,null,"X",null,null,null,null,8073,12,"Dolby Digital 1.0 Mono","DTS-HD Master Audio 7.1",1.33,41,"Blu-ray","Star Trek: The Next Generation","Star Trek TNG"]
[51,"Unser Kosmos - Die Reise geht weiter",null,null,null,null,"X",null,null,null,null,null,null,null,null,null,null,null,null,null,null,null,null,572,0,"Dolby Digital 2.0 Surround","Dolby Digital 5.1",1.78,4,"DVD","Cosmos: A SpaceTime Odyssey","Unser"]
[52,"Unser Universum (Teil 1)",null,null,null,null,"X",null,null,null,null,null,null,null,null,null,null,null,null,null,null,null,null,141,6,"Dolby Digital 5.1","Dolby Digital 5.1",1.78,2,"DVD","Known Universe","Unve1"]
[53,"Unser Universum (Teil 2)",null,null,null,null,"X",null,null,null,null,null,null,null,null,null,null,null,null,null,null,null,null,141,6,"Dolby Digital 5.1","Dolby Digital 5.1",1.78,2,"DVD","Known Universe","Unve2"]
[54,"Unser Universum (Teil 3)",null,null,null,null,"X",null,null,null,null,null,null,null,null,null,null,null,null,null,null,null,null,180,6,"Dolby Digital 5.1","Dolby Digital 5.1",1.78,1,"DVD","Known Universe","Unve3"]
[55,"Unser Universum (Teil 4)",null,null,null,null,"X",null,null,null,null,null,null,null,null,null,null,null,null,null,null,null,null,180,6,"Dolby Digital 5.1","Dolby Digital 5.1",1.78,1,"DVD","Known Universe","Unve4"]
[56]
[57]
[58]
[59]
[60]
[61]
[62]
[63]
[64]
[{"$f":"A65+1","v":65}]
[66]
[67]
[68]
[69]
[70]
[71]
[72]
[73]
[74]
[75]
[76]
[77]
[78]
[79]
[80]
[81]
[82]
[83]
[84]
[85]
[86]
[87]
[88]
[89]
[90]
[91]
[92]
[93]
[94]
[95]
[96]
[97]
[98]
[99]
[100]

{"sheet":"Anime","index":2,"n_rows":206,"n_cols":31,"rows_kept":206,"cut":false,"hidden":false,"merged":[]}
[null,"Titel","Abenteuer","Action","Comedy","Drama","Erotik","Fantasy","Grusel","Historienfilm","Horror","Komödie","Krieg","Krimi","Liebe/Romantik","Musik","Mystery","Science-Fiction","Splatter","Thriller","Western","Zombies","Länge","FSK","Tonformat Deutsch","Tonformat Japanisch","Bildformat (x:1)","Anzahl Discs","Medientyp","Orginaltitel","Sortierschlüssel"]
[{"$f":"A1+1","v":1},"Akuma no Riddle",null,"X",null,null,null,null,null,null,null,null,null,null,null,null,null,null,null,null,null,null,325,16,"DTS-HD Master Audio 2.0","DTS-HD Master Audio 2.0",1.78,4,"Blu-ray","Akuma no ridoru","Akuma1.0"]
[2,"And You Thought There Is Never a Girl Online?",null,null,null,null,null,null,null,null,null,"X",null,null,"X",null,null,null,null,null,null,null,300,16,"DTS-HD Master Audio 5.1","LPCM 2.0",1.78,3,"Blu-ray","Netoge no yome wa onnanoko ja nai to omotta?","Andyou1.0"]
[3,"Another",null,null,null,null,null,null,null,null,"X",null,null,null,null,null,null,null,null,null,null,null,325,16,"DTS-HD Master Audio 2.0","DTS-HD Master Audio 2.0",1.78,4,"Blu-ray","Anazā","Another1.0"]
[4,"Arifureta: From Commonplace to World's Strongest - Season 1","X","X",null,null,null,"X",null,null,null,"X",null,null,"X",null,null,null,null,null,null,null,330,16,"DTS-HD Master Audio 2.0","DTS-HD Master Audio 2.0",1.78,3,"Blu-ray","Arifureta shokugyō de sekai saikyō","Arifureta1.0"]
[5,"Arifureta: From Commonplace to World's Strongest 2nd Season","X","X",null,null,null,"X",null,null,null,"X",null,null,"X",null,null,null,null,null,null,null,354,16,"DTS-HD Master Audio 2.0","DTS-HD Master Audio 2.0",1.78,3,"Blu-ray","Arifureta shokugyō de sekai saikyō 2nd season","Arifureta2.0"]
[6,"Arifureta: From Commonplace to World's Strongest Season 3","X","X",null,null,null,"X",null,null,null,"X",null,null,"X",null,null,null,null,null,null,null,{"$f":"120+120+144","v":384},16,"DTS-HD Master Audio 2.0","DTS-HD Master Audio 2.0",1.78,{"$f":"1+1+1","v":3},"Blu-ray","Arifureta shokugyō de sekai saikyō season 3","Arifureta3.0"]
[7,"Beheneko: Ich bin ein mächtiger Behemoth und lebe als Kätzchen bei einer Elfe","X","X",null,null,"X","X",null,null,null,"X",null,null,null,null,null,null,null,null,null,null,{"$f":"96+96+96","v":288},16,"DTS-HD Master Audio 2.0","DTS-HD Master Audio 2.0",1.78,{"$f":"1+1+1","v":3},"Blu-ray","S-ranku monsutâ no \"behîmosu\" dakedo, neko to machigawarete erufu musume no kishi (petto) to shite kurashitemasu","Beheneko1.0"]
[8,"Beyond the Boundary: Kyokai no Kanata",null,null,null,null,null,"X",null,null,null,null,null,null,null,null,"X",null,null,null,null,null,325,12,"DTS-HD Master Audio 2.0","DTS-HD Master Audio 2.0",1.78,4,"Blu-ray","Kyōkai no kanata","Beyondthe1.0"]
[9,"B Gata H Kei - Vol. 1",null,null,null,null,"X",null,null,null,null,"X",null,null,"X",null,null,null,null,null,null,null,150,16,"DTS-HD Master Audio 2.0","DTS-HD Master Audio 2.0",1.78,1,"Blu-ray","B-gata H-kei","BGata1.1"]
[10,"B Gata H Kei - Vol. 2",null,null,null,null,"X",null,null,null,null,"X",null,null,"X",null,null,null,null,null,null,null,150,16,"DTS-HD Master Audio 2.0","DTS-HD Master Audio 2.0",1.78,1,"Blu-ray","B-gata H-kei","BGata1.2"]
[11,"Bloom Into You",null,null,null,"X",null,null,null,null,null,null,null,null,"X",null,null,null,null,null,null,null,308,0,"DTS-HD Master Audio 5.1","DTS-HD Master Audio 2.0",1.78,3,"Blu-ray","Yagate kimi ni naru","Bloom1.0"]
[12,"Burst Angel",null,null,null,null,null,null,null,null,null,null,null,null,null,null,null,"X",null,null,null,null,650,16,"DTS-HD Master Audio 5.1","DTS-HD High Resolution 5.1",1.78,3,"Blu-ray","Bakuretsu tenshi","Burst1.0"]
[13,"A Chivalry of a Failed Knight",null,"X",null,null,null,"X",null,null,null,null,null,null,"X",null,null,null,null,null,null,null,272,16,"Dolby Digital 5.1","Dolby Digital 2.0 Stereo",1.78,3,"DVD","Rakudai kishi no kyabarurii","Chivalry1.0"]
[14,"citrus",null,null,null,"X",null,null,null,null,null,"X",null,null,"X",null,null,null,null,null,null,null,300,12,"Dolby Digital 2.0 Stereo","Dolby Digital 2.0 Stereo",1.78,3,"Blu-ray","citrus","citrus1.0"]
[15,"Demon Slave - The Chained Soldier - Vol. 1",null,"X",null,"X","X","X",null,null,null,"X",null,null,null,null,null,null,null,null,null,null,150,16,"DTS-HD Master Audio 2.0","DTS-HD Master Audio 2.0",1.78,1,"Blu-ray","Mato Seihei no Slave","DemonSlave1.1"]
[16,"Demon Slave - The Chained Soldier - Vol. 2",null,"X",null,"X","X","X",null,null,null,"X",null,null,null,null,null,null,null,null,null,null,150,16,"DTS-HD Master Audio 2.0","DTS-HD Master Audio 2.0",1.78,1,"Blu-ray","Mato Seihei no Slave","DemonSlave1.2"]
[17,"Die rothaarige Schneeprinzessin",null,null,null,null,null,"X",null,null,null,null,null,null,"X",null,null,null,null,null,null,null,582,12,"DTS-HD Master Audio 5.1","DTS-HD Master Audio 2.0",1.78,6,"Blu-ray","Akagami no Shirayukihime","DieRothaar1.0"]
[18,"Die Tagebücher der Apothekerin - Season 1",null,null,null,"X",null,null,null,"X",null,"X",null,null,null,null,null,null,null,null,null,null,{"$f":"150+150+150+150","v":600},12,"Dolby TrueHD 2.0","Dolby TrueHD 2.0",1.78,4,"Blu-ray","Kusuriya no Hitorigoto","DieTageb1.0"]
[19,"Dog & Scissors - Vol. 1",null,null,null,null,null,null,null,null,null,"X",null,null,null,null,"X",null,null,null,null,null,150,12,"DTS-HD Master Audio 2.0","DTS-HD Master Audio 2.0",1.78,1,"Blu-ray","Inu to Hasami wa Tsukaiyō","Dog1.1"]
[20,"Dog & Scissors - Vol. 2",null,null,null,null,null,null,null,null,null,"X",null,null,null,null,"X",null,null,null,null,null,150,12,"DTS-HD Master Audio 2.0","DTS-HD Master Audio 2.0",1.78,1,"Blu-ray","Inu to Hasami wa Tsukaiyō","Dog1.2"]
[21,"Domestic Girlfriend - Vol. 1",null,null,null,"X","X",null,null,null,null,"X",null,null,"X",null,null,null,null,null,null,null,150,16,"Dolby Digital 2.0 Stereo","Dolby Digital 2.0 Stereo",1.78,1,"Blu-ray","Domesutikku na kanojo","Domes1.1"]
[22,"Domestic Girlfriend - Vol. 2",null,null,null,"X","X",null,null,null,null,"X",null,null,"X",null,null,null,null,null,null,null,150,16,"Dolby Digital 2.0 Stereo","Dolby Digital 2.0 Stereo",1.78,1,"Blu-ray","Domesutikku na kanojo","Domes1.2"]
[23,"Dungeon People","X",null,null,"X",null,"X",null,null,null,"X",null,null,null,null,null,null,null,null,null,null,{"$f":"146+145","v":291},12,"DTS-HD Master Audio 5.1","DTS-HD Master Audio 2.0",1.78,2,"Blu-ray","Danjon no Naka no Hito","DungeonP1.0"]
[24,"Dusk Maiden of Amnesia",null,null,null,null,null,null,null,null,null,null,null,null,"X",null,"X",null,null,null,null,null,325,16,"DTS-HD Master Audio 2.0","DTS-HD Master Audio 2.0",1.78,2,"Blu-ray","Tasogare otome × amunejia","DuskM1.0"]
[25,"Eromanga Sensei - Vol. 1",null,null,null,null,null,null,null,null,null,"X",null,null,"X",null,null,null,null,null,null,null,175,16,"DTS-HD Master Audio 2.0","DTS-HD Master Audio 2.0",1.78,1,"Blu-ray","Eromanga-sensei","Eromanga1.1"]
[26,"Eromanga Sensei - Vol. 2",null,null,null,null,null,null,null,null,null,"X",null,null,"X",null,null,null,null,null,null,null,175,16,"DTS-HD Master Audio 2.0","DTS-HD Master Audio 2.0",1.78,1,"Blu-ray","Eromanga-sensei","Eromanga1.2"]
[27,"Expelled from Paradise",null,"X",null,null,null,null,null,null,null,null,null,null,null,null,null,"X",null,null,null,null,104,12,"DTS-HD Master Audio 5.1","DTS-HD Master Audio 5.1",1.78,1,"Blu-ray","Rakuen tsuihō: Expelled from paradise","Expelled"]
[28,"Gabriel DropOut",null,null,null,null,null,"X",null,null,null,"X",null,null,null,null,null,null,null,null,null,null,300,12,"Dolby Digital 2.0 Stereo","Dolby Digital 2.0 Stereo",1.78,3,"Blu-ray","Gavurīru Doroppuauto","Gabriel1.0"]
[29,"Grenadier","X",null,null,null,null,null,null,null,null,"X",null,null,null,null,null,null,null,null,null,null,300,16,"Dolby Digital 2.0 Stereo","Dolby Digital 2.0 Stereo",1.78,3,"DVD","Gurenēdā – Hohoemi no Senshi ","Grenadier1.0"]
[30,"Gushing over Magical Girls",null,"X",null,null,"X","X",null,null,null,"X",null,null,null,null,null,null,null,null,null,null,{"$f":"96+96+120","v":312},16,"DTS-HD Master Audio 2.0","DTS-HD Master Audio 2.0",1.78,3,"Blu-ray","Mahō Shōjo ni Akogarete","Gushing1.0"]
[31,"Hensuki: Are You Willing to Fall in Love With a Pervert, As Long As She's a Cutie?",null,null,null,null,null,null,null,null,null,"X",null,null,"X",null,null,null,null,null,null,null,300,16,"DTS-HD Master Audio 2.0","DTS-HD Master Audio 2.0",1.78,3,"Blu-ray","Kawaikereba hentai demo suki ni natte kuremasu ka?","Hensuki1.0"]
[32,"Higehiro: After Being Rejected, I Shaved and Took in a High School Runaway - Vol. 1",null,null,null,"X",null,null,null,null,null,"X",null,null,"X",null,null,null,null,null,null,null,150,16,"DTS-HD Master Audio 2.0","DTS-HD Master Audio 2.0",1.78,1,"Blu-ray","Hige o Soru. Soshite Joshi Kōsei o Hirou.","Higehiro1.1"]
[33,"Higehiro: After Being Rejected, I Shaved and Took in a High School Runaway - Vol. 2",null,null,null,"X",null,null,null,null,null,"X",null,null,"X",null,null,null,null,null,null,null,175,16,"DTS-HD Master Audio 2.0","DTS-HD Master Audio 2.0",1.78,1,"Blu-ray","Hige o Soru. Soshite Joshi Kōsei o Hirou.","Higehiro1.2"]
[34,"High School DxD - Vol. 1",null,"X",null,null,"X","X",null,null,null,"X",null,null,null,null,null,null,null,null,null,null,75,16,"DTS-HD Master Audio 2.0","DTS-HD Master Audio 2.0",1.78,1,"Blu-ray","Haisukūru D×D","High1.1"]
[35,"High School DxD - Vol. 2",null,"X",null,null,"X","X",null,null,null,"X",null,null,null,null,null,null,null,null,null,null,75,16,"DTS-HD Master Audio 2.0","DTS-HD Master Audio 2.0",1.78,1,"Blu-ray","Haisukūru D×D","High1.2"]
[36,"High School DxD - Vol. 3",null,"X",null,null,"X","X",null,null,null,"X",null,null,null,null,null,null,null,null,null,null,75,16,"DTS-HD Master Audio 2.0","DTS-HD Master Audio 2.0",1.78,1,"Blu-ray","Haisukūru D×D","High1.3"]
[37,"High School DxD - Vol. 4",null,"X",null,null,"X","X",null,null,null,"X",null,null,null,null,null,null,null,null,null,null,75,16,"DTS-HD Master Audio 2.0","DTS-HD Master Audio 2.0",1.78,1,"Blu-ray","Haisukūru D×D","High1.4"]
[38,"High School DxD New - Vol. 1",null,"X",null,null,"X","X",null,null,null,"X",null,null,null,null,null,null,null,null,null,null,75,16,"DTS-HD Master Audio 2.0","DTS-HD Master Audio 2.0",1.78,1,"Blu-ray","Haisukūru D×D New","High2.1"]
[39,"High School DxD New - Vol. 2",null,"X",null,null,"X","X",null,null,null,"X",null,null,null,null,null,null,null,null,null,null,75,16,"DTS-HD Master Audio 2.0","DTS-HD Master Audio 2.0",1.78,1,"Blu-ray","Haisukūru D×D New","High2.2"]
[40,"High School DxD New - Vol. 3",null,"X",null,null,"X","X",null,null,null,"X",null,null,null,null,null,null,null,null,null,null,75,16,"DTS-HD Master Audio 2.0","DTS-HD Master Audio 2.0",1.78,1,"Blu-ray","Haisukūru D×D New","High2.3"]
[41,"High School DxD New - Vol. 4",null,"X",null,null,"X","X",null,null,null,"X",null,null,null,null,null,null,null,null,null,null,75,16,"DTS-HD Master Audio 2.0","DTS-HD Master Audio 2.0",1.78,1,"Blu-ray","Haisukūru D×D New","High2.4"]
[42,"High School DxD BorN - Vol. 1",null,"X",null,null,"X","X",null,null,null,"X",null,null,null,null,null,null,null,null,null,null,75,16,"DTS-HD Master Audio 2.0","DTS-HD Master Audio 2.0",1.78,1,"Blu-ray","Haisukūru D×D BorN","High3.1"]
[43,"High School DxD BorN - Vol. 2",null,"X",null,null,"X","X",null,null,null,"X",null,null,null,null,null,null,null,null,null,null,75,16,"DTS-HD Master Audio 2.0","DTS-HD Master Audio 2.0",1.78,1,"Blu-ray","Haisukūru D×D BorN","High3.2"]
[44,"High School DxD BorN - Vol. 3",null,"X",null,null,"X","X",null,null,null,"X",null,null,null,null,null,null,null,null,null,null,75,16,"DTS-HD Master Audio 2.0","DTS-HD Master Audio 2.0",1.78,1,"Blu-ray","Haisukūru D×D BorN","High3.3"]
[45,"High School DxD BorN - Vol. 4",null,"X",null,null,"X","X",null,null,null,"X",null,null,null,null,null,null,null,null,null,null,75,16,"DTS-HD Master Audio 2.0","DTS-HD Master Audio 2.0",1.78,1,"Blu-ray","Haisukūru D×D BorN","High3.4"]
[46,"High School DxD Hero - Vol. 1",null,"X",null,null,"X","X",null,null,null,"X",null,null,null,null,null,null,null,null,null,null,100,16,"DTS-HD Master Audio 2.0","DTS-HD Master Audio 2.0",1.78,1,"Blu-ray","Haisukūru D×D Hero","High4.1"]
[47,"High School DxD Hero - Vol. 2",null,"X",null,null,"X","X",null,null,null,"X",null,null,null,null,null,null,null,null,null,null,75,16,"DTS-HD Master Audio 2.0","DTS-HD Master Audio 2.0",1.78,1,"Blu-ray","Haisukūru D×D Hero","High4.2"]
[48,"High School DxD Hero - Vol. 3",null,"X",null,null,"X","X",null,null,null,"X",null,null,null,null,null,null,null,null,null,null,75,16,"DTS-HD Master Audio 2.0","DTS-HD Master Audio 2.0",1.78,1,"Blu-ray","Haisukūru D×D Hero","High4.3"]
[49,"High School DxD Hero - Vol. 4",null,"X",null,null,"X","X",null,null,null,"X",null,null,null,null,null,null,null,null,null,null,75,16,"DTS-HD Master Audio 2.0","DTS-HD Master Audio 2.0",1.78,1,"Blu-ray","Haisukūru D×D Hero","High4.4"]
[50,"How Not to Summon a Demon Lord","X","X",null,null,null,"X",null,null,null,"X",null,null,"X",null,null,null,null,null,null,null,300,16,"DTS-HD Master Audio 2.0","DTS-HD Master Audio 2.0",1.78,3,"Blu-ray","Isekai maō to shōkan shōjo no dorei majutsu","HowNot1.0"]
[51,"How NOT to Summon a Demon Lord Ω","X","X",null,null,null,"X",null,null,null,"X",null,null,"X",null,null,null,null,null,null,null,250,16,"DTS-HD Master Audio 2.0","DTS-HD Master Audio 2.0",1.78,2,"Blu-ray","Isekai Maō to Shōkan Shōjo no Dorei Majutsu Ω","HowNot2.0"]
[52,"Hybrid x Heart Magias Academy Ataraxia - Vol. 1",null,"X",null,null,"X","X",null,null,null,"X",null,null,null,null,null,null,null,null,null,null,150,16,"Dolby Digital 2.0 Stereo","Dolby Digital 2.0 Stereo",1.78,1,"Blu-ray","Masō gakuen HxH","HybridxHeart1.1"]
[53,"Hybrid x Heart Magias Academy Ataraxia - Vol. 2",null,"X",null,null,"X","X",null,null,null,"X",null,null,null,null,null,null,null,null,null,null,150,16,"Dolby Digital 2.0 Stereo","Dolby Digital 2.0 Stereo",1.78,1,"Blu-ray","Masō gakuen HxH","HybridxHeart1.2"]
[54,"I Got a Cheat Skill in Another World and Became Unrivaled in The Real World, Too","X","X",null,null,null,"X",null,null,null,null,null,null,null,null,null,null,null,null,null,null,325,12,"Dolby TrueHD 2.0","Dolby TrueHD 2.0",1.78,2,"Blu-ray","Isekai de Chīto Sukiru o Te ni Shita Ore wa, Genjitsu Sekai o mo Musō Suru: Reberu Appu wa Jinsei o Kaeta","IGotACheatSkill1.0"]
[55,"Interviews mit Monster-Mädchen",null,null,null,null,null,"X",null,null,null,"X",null,null,null,null,null,null,null,null,null,null,300,12,"DTS-HD Master Audio 2.0","DTS-HD Master Audio 2.0",1.78,3,"Blu-ray","Demi-chan wa Kataritai","Interviews1.0"]
[56,"Is This a Zombie?",null,null,null,null,null,"X",null,null,null,"X",null,null,"X",null,null,null,null,null,null,null,322,16,"DTS-HD Master Audio 2.0","DTS-HD Master Audio 2.0",1.78,3,"Blu-ray","Kore wa zonbi desu ka?","IsThisAZombie1.0"]
[57,"Is This a Zombie? of the Dead",null,"X",null,null,null,"X",null,null,null,"X",null,null,null,null,null,null,null,null,null,null,265,16,"DTS-HD Master Audio 2.0","DTS-HD Master Audio 2.0",1.78,3,"Blu-ray","Kore wa zonbi desu ka? Obu za deddo","IsThisAZombie2.0"]
[58,"Josie, der Tiger und die Fische",null,null,null,"X",null,null,null,null,null,null,null,null,"X",null,null,null,null,null,null,null,98,12,"DTS-HD Master Audio 5.1","DTS-HD Master Audio 5.1",1.78,1,"Blu-ray","Joze to tora to sakana-tachi","Josie"]
[59,"Kiddy Grade - Vol. 1",null,"X",null,null,null,null,null,null,null,null,null,null,null,null,null,"X",null,null,null,null,300,16,"LPCM 2.0","LPCM 2.0",1.33,2,"Blu-ray","Kiddy Grade","Kiddy1.1"]
[60,"Kiddy Grade - Vol. 2",null,"X",null,null,null,null,null,null,null,null,null,null,null,null,null,"X",null,null,null,null,300,16,"LPCM 2.0","LPCM 2.0",1.33,2,"Blu-ray","Kiddy Grade","Kiddy1.2"]
[61,"Kiss × Sis",null,null,null,null,"X",null,null,null,null,"X",null,null,"X",null,null,null,null,null,null,null,{"$f":"144+144+144+144","v":576},18,"DTS-HD Master Audio 2.0","DTS-HD Master Audio 2.0",1.78,4,"Blu-ray","kiss×sis","Kiss1.0"]
[62,"Lonely Castle in the Mirror",null,null,null,"X",null,"X",null,null,null,null,null,null,null,null,"X",null,null,null,null,null,116,12,"Dolby Atmos 7.1.4","DTS-HD Master Audio 5.1",1.78,1,"Blu-ray","Kagami no Kojō","LonelyCastle"]
[63,"Lycoris Recoil",null,"X",null,null,null,null,null,null,null,"X",null,null,null,null,null,null,null,null,null,null,325,16,"Dolby TrueHD 2.0","Dolby TrueHD 2.0",1.78,2,"Blu-ray","Rikorisu Rikoiru","Lycoris1.0"]
[64,"Maid-sama - Vol. 1",null,null,null,null,null,null,null,null,null,"X",null,null,"X",null,null,null,null,null,null,null,350,12,"DTS-HD Master Audio 2.0","DTS-HD Master Audio 2.0",1.78,2,"Blu-ray","Kaichō wa Maid-sama!","Maid1.1"]
[{"$f":"A65+1","v":65},"Maid-sama - Vol. 2",null,null,null,null,null,null,null,null,null,"X",null,null,"X",null,null,null,null,null,null,null,300,12,"DTS-HD Master Audio 2.0","DTS-HD Master Audio 2.0",1.78,2,"Blu-ray","Kaichō wa Maid-sama!","Maid1.2"]
[66,"Miss Kobayashi's Dragon Maid - Vol. 1",null,null,null,null,null,"X",null,null,null,"X",null,null,null,null,null,null,null,null,null,null,125,12,"Dolby Digital 2.0 Stereo","Dolby Digital 2.0 Stereo",1.78,1,"Blu-ray","Kobayashi-san Chi no Meidoragon","MissKoba1.1"]
[67,"Miss Kobayashi's Dragon Maid - Vol. 2",null,null,null,null,null,"X",null,null,null,"X",null,null,null,null,null,null,null,null,null,null,125,12,"Dolby Digital 2.0 Stereo","Dolby Digital 2.0 Stereo",1.78,1,"Blu-ray","Kobayashi-san Chi no Meidoragon","MissKoba1.2"]
[68,"Miss Kobayashi's Dragon Maid - Vol. 3",null,null,null,null,null,"X",null,null,null,"X",null,null,null,null,null,null,null,null,null,null,100,12,"Dolby Digital 2.0 Stereo","Dolby Digital 2.0 Stereo",1.78,1,"Blu-ray","Kobayashi-san Chi no Meidoragon","MissKoba1.3"]
[69,"Miss Kobayashi's Dragon Maid S",null,null,null,null,null,"X",null,null,null,"X",null,null,null,null,null,null,null,null,null,null,325,12,"DTS-HD Master Audio 2.0","DTS-HD Master Audio 2.0",1.78,3,"Blu-ray","Kobayashi-san Chi no Meidoragon","MissKoba2.0"]
[70,"Monster Girl Doctor - Vol. 1",null,null,null,null,null,"X",null,null,null,"X",null,null,"X",null,null,null,null,null,null,null,150,16,"DTS-HD Master Audio 2.0","DTS-HD Master Audio 2.0",1.78,1,"Blu-ray","Monsutā Musume no Oisha-san","MonsterGirlDoc1.1"]
[71,"Monster Girl Doctor - Vol. 2",null,null,null,null,null,"X",null,null,null,"X",null,null,"X",null,null,null,null,null,null,null,150,16,"DTS-HD Master Audio 2.0","DTS-HD Master Audio 2.0",1.78,1,"Blu-ray","Monsutā Musume no Oisha-san","MonsterGirlDoc1.2"]
[72,"Monster Mädchen, Die",null,null,null,null,null,"X",null,null,null,"X",null,null,"X",null,null,null,null,null,null,null,300,16,"DTS-HD Master Audio 2.0","DTS-HD Master Audio 2.0",1.78,4,"Blu-ray","Monsutā musume no iru nichijō","MonsterM1.0"]
[73,"Mother of the Goddess' Dormitory",null,null,null,null,"X",null,null,null,null,"X",null,null,"X",null,null,null,null,null,null,null,240,16,"DTS-HD Master Audio 2.0","DTS-HD Master Audio 2.0",1.78,3,"Blu-ray","Megami-ryō no Ryōbo-kun","Motherof1.0"]
[74,"My Dress-Up Darling - Season 1",null,null,null,null,null,null,null,null,null,"X",null,null,"X",null,null,null,null,null,null,null,300,12,"Dolby TrueHD 2.0","Dolby TrueHD 2.0",1.78,2,"Blu-ray","Sono Bisuku Dōru wa Koi o Suru","MyDressUpDarling1.0"]
[75,"My First Girlfriend Is a Gal - Vol. 1",null,null,null,null,null,null,null,null,null,"X",null,null,"X",null,null,null,null,null,null,null,125,16,"Dolby Digital 2.0 Stereo","Dolby Digital 2.0 Stereo",1.78,1,"Blu-ray","Hajimete no Gyaru","MyFirstGirlfriend1.1"]
[76,"My First Girlfriend Is a Gal - Vol. 2",null,null,null,null,null,null,null,null,null,"X",null,null,"X",null,null,null,null,null,null,null,125,16,"Dolby Digital 2.0 Stereo","Dolby Digital 2.0 Stereo",1.78,1,"Blu-ray","Hajimete no Gyaru","MyFirstGirlfriend1.2"]
[77,"My Life as Inukai-san's Dog",null,null,null,null,"X",null,null,null,null,"X",null,null,"X",null,null,null,null,null,null,null,144,16,"DTS-HD Master Audio 2.0","DTS-HD Master Audio 2.0",1.78,1,"Blu-ray","Inu ni Nattara Suki na Hito ni Hirowareta","MyLifeAs1.0"]
[78,"Peter Grill and the Philosopher's Time",null,null,null,null,"X","X",null,null,null,"X",null,null,null,null,null,null,null,null,null,null,144,16,"DTS-HD Master Audio 2.0","DTS-HD Master Audio 2.0",1.78,3,"Blu-ray","Pītā Guriru to Kenja no Jikan","PeterGrill1.0"]
[79,"Plus-Sized Elf",null,null,null,null,"X","X",null,null,null,"X",null,null,null,null,null,null,null,null,null,null,332,16,"DTS-HD Master Audio 2.0","DTS-HD Master Audio 2.0",1.78,2,"Blu-ray","Erufu-san wa Yaserarenai","PlusSizedElf1.0"]
[80,"Princess Principal - Vol. 1",null,"X",null,"X",null,null,null,null,null,null,null,null,null,null,"X",null,null,null,null,null,150,16,"Dolby Digital 2.0 Stereo","Dolby Digital 2.0 Stereo",1.78,1,"Blu-ray","Princess Principal","PrincessPrincipal1.1"]
[81,"Princess Principal - Vol. 2",null,"X",null,"X",null,null,null,null,null,null,null,null,null,null,"X",null,null,null,null,null,150,16,"Dolby Digital 2.0 Stereo","Dolby Digital 2.0 Stereo",1.78,1,"Blu-ray","Princess Principal","PrincessPrincipal1.2"]
[82,"Princess Principal: Crown Handler - Chapter 1 & 2",null,"X",null,"X",null,null,null,null,null,null,null,null,null,null,"X",null,null,null,null,null,110,16,"DTS-HD Master Audio 5.1","DTS-HD Master Audio 5.1",1.78,1,"Blu-ray","Purinsesu Purinshiparu: Kuraun Handorā","PrincessPrincipalCrownHandler1-2"]
[83,"Prison School",null,null,null,null,null,null,null,null,null,"X",null,null,"X",null,null,null,null,null,null,null,300,16,"DTS-HD Master Audio 5.1","LPCM 2.0",1.78,4,"Blu-ray","Purizun Sukūru","PrisonS1.0"]
[84,"RIN - Daughters of Mnemosyne",null,"X",null,null,null,null,null,null,"X",null,null,null,null,null,"X",null,"X","X",null,null,270,16,"Dolby Digital 5.1","Dolby Digital 2.0 Stereo",1.78,2,"DVD","Mnemosyne: Munemoshune no musume-tachi","Rin1.0"]
[85,"Rosario + Vampire",null,"X",null,null,null,"X",null,null,null,"X",null,null,"X",null,null,null,null,null,null,null,325,16,"DTS-HD Master Audio 2.0","DTS-HD Master Audio 2.0",1.78,2,"Blu-ray","Rozario to banpaia","Rosario1.0"]
[86,"Rosario + Vampire Capu2",null,"X",null,null,null,"X",null,null,null,"X",null,null,"X",null,null,null,null,null,null,null,325,16,"DTS-HD Master Audio 2.0","DTS-HD Master Audio 2.0",1.78,2,"Blu-ray","Rozario to banpaia: Capu2","Rosario2.0"]
[87,"Seven Mortal Sins - Vol. 1",null,"X",null,null,null,"X",null,null,null,null,null,null,null,null,null,null,null,null,null,null,150,16,"Dolby Digital 2.0 Stereo","Dolby Digital 2.0 Stereo",1.78,1,"Blu-ray","Sin: Nanatsu no taizai","Seven1.1"]
[88,"Seven Mortal Sins - Vol. 2",null,"X",null,null,null,"X",null,null,null,null,null,null,null,null,null,null,null,null,null,null,150,16,"Dolby Digital 2.0 Stereo","Dolby Digital 2.0 Stereo",1.78,1,"Blu-ray","Sin: Nanatsu no taizai","Seven1.2"]
[89,"Shimoneta: A Boring World Where the Concept of Dirty Jokes Doesn’t Exist",null,null,null,null,null,null,null,null,null,"X",null,null,null,null,null,null,null,null,null,null,300,16,"DTS-HD Master Audio 2.0","DTS-HD Master Audio 2.0",1.78,4,"Blu-ray","Shimoneta to iu gainen ga sonzai shinai taikutsu na sekai","Shimoneta1.0"]
[90,"Sky Wizards Academy - Vol. 1",null,"X",null,"X",null,"X",null,null,null,null,null,null,null,null,null,null,null,null,null,null,141,12,"DTS-HD Master Audio 5.1","DTS-HD Master Audio 2.0",1.78,1,"Blu-ray","Kūsen madōshi kōhosei no kyōkan","SkyWizards1.1"]
[91,"Sky Wizards Academy - Vol. 2",null,"X",null,"X",null,"X",null,null,null,null,null,null,null,null,null,null,null,null,null,null,166,12,"DTS-HD High Resolution 5.1","DTS-HD Master Audio 2.0",1.78,1,"Blu-ray","Kūsen madōshi kōhosei no kyōkan","SkyWizards1.2"]
[92,"So, I Can't Play H - Vol. 1",null,null,null,null,null,"X",null,null,null,null,null,null,"X",null,null,null,null,null,null,null,150,16,"DTS-HD Master Audio 2.0","DTS-HD Master Audio 2.0",1.78,1,"Blu-ray","Dakara boku wa, H ga dekinai.","SoICantPlayH1.1"]
[93,"So, I Can't Play H - Vol. 2",null,null,null,null,null,"X",null,null,null,null,null,null,"X",null,null,null,null,null,null,null,150,16,"DTS-HD Master Audio 2.0","DTS-HD Master Audio 2.0",1.78,1,"Blu-ray","Dakara boku wa, H ga dekinai.","SoICantPlayH1.2"]
[94,"SPY×FAMILY - Staffel 1",null,"X",null,null,null,null,null,null,null,"X",null,null,null,null,null,null,null,null,null,null,625,12,"DTS-HD Master Audio 2.0","DTS-HD Master Audio 2.0",1.78,6,"Blu-ray","SPY×FAMILY","Spy1.0"]
[95,"SPY×FAMILY - Staffel 2",null,"X",null,null,null,null,null,null,null,"X",null,null,null,null,null,null,null,null,null,null,{"$f":"100+100+100","v":300},16,"DTS-HD Master Audio 2.0","DTS-HD Master Audio 2.0",1.78,3,"Blu-ray","SPY×FAMILY","Spy2.0"]
[96,"SPY×FAMILY Code: White","X","X",null,null,null,null,null,null,null,"X",null,null,null,null,null,null,null,null,null,null,110,12,"Dolby TrueHD 5.1","Dolby TrueHD 5.1",1.78,1,"Blu-ray","Gekijōban Supai Famirī Kōdo: Howaito","SpyCode"]
[97,"Strike the Blood",null,"X",null,null,null,"X",null,null,null,"X",null,null,null,null,null,null,null,null,null,null,600,16,"DTS-HD Master Audio 2.0","DTS-HD Master Audio 2.0",1.78,4,"Blu-ray","Sutoraiku za buraddo","StrikeTheBlood1.0"]
[98,"Strike the Blood OVAs",null,"X",null,null,null,"X",null,null,null,"X",null,null,null,null,null,null,null,null,null,null,50,12,"DTS-HD Master Audio 2.0","DTS-HD Master Audio 2.0",1.78,1,"Blu-ray","Sutoraiku za buraddo","StrikeTheBlood1.5"]
[99,"Strike the Blood II",null,"X",null,null,null,"X",null,null,null,"X",null,null,null,null,null,null,null,null,null,null,200,16,"DTS-HD Master Audio 2.0","DTS-HD Master Audio 2.0",1.78,1,"Blu-ray","Sutoraiku za buraddo","StrikeTheBlood2.0"]
[100,"Strike Witches - Staffel 1",null,"X",null,null,null,null,null,null,null,null,null,null,null,null,null,"X",null,null,null,null,296,16,"DTS-HD Master Audio 2.0","DTS-HD Master Audio 2.0",1.78,3,"Blu-ray","Sutoraiku Witchīzu","StrikeWitches1.0"]
[101,"Super HxEros - Vol. 1",null,"X",null,null,null,"X",null,null,null,"X",null,null,"X",null,null,null,null,null,null,null,175,16,"DTS-HD Master Audio 2.0","DTS-HD Master Audio 2.0",1.78,1,"Blu-ray","Dokyū Hentai Eguzerosu","SuperHxEros1.1"]
[102,"Super HxEros - Vol. 2",null,"X",null,null,null,"X",null,null,null,"X",null,null,"X",null,null,null,null,null,null,null,150,16,"DTS-HD Master Audio 2.0","DTS-HD Master Audio 2.0",1.78,1,"Blu-ray","Dokyū Hentai Eguzerosu","SuperHxEros1.2"]
[103,"Tales of Wedding Rings",null,"X",null,null,null,"X",null,null,null,null,null,null,"X",null,null,null,null,null,null,null,300,16,"Dolby TrueHD 2.0","Dolby TrueHD 2.0",1.78,2,"Blu-ray","Kekkon Yubiwa Monogatari","TalesOfWedd1.0"]
[104,"The Ancient Magus' Bride",null,null,null,null,null,"X",null,null,null,null,null,null,"X",null,null,null,null,null,null,null,600,12,"DTS-HD Master Audio 2.0","DTS-HD Master Audio 2.0",1.78,4,"Blu-ray","Mahōtsukai no yome","TheAncientMagus1.0"]
[105,"The Ancient Magus' Bride: Jener, der auf die Sterne wartet",null,null,null,null,null,"X",null,null,null,null,null,null,"X",null,null,null,null,null,null,null,75,12,"DTS-HD Master Audio 2.0","DTS-HD Master Audio 2.0",1.78,1,"Blu-ray","Mahōtsukai no yome","TheAncientMagus1.5"]
[106,"The Ancient Magus' Bride: The Boy from the West and the Knight of the Blue Storm",null,null,null,null,null,"X",null,null,null,null,null,null,"X",null,null,null,null,null,null,null,66,12,"Dolby TrueHD 2.0","Dolby TrueHD 2.0",1.78,1,"Blu-ray","Mahōtsukai no yome","TheAncientMagus1.6"]
[107,"The Ancient Magus' Bride - Season 2",null,null,null,null,null,"X",null,null,null,null,null,null,"X",null,null,null,null,null,null,null,600,12,"Dolby TrueHD 2.0","Dolby TrueHD 2.0",1.78,4,"Blu-ray","Mahōtsukai no yome","TheAncientMagus2.0"]
[108,"The Dreaming Boy Is a Realist",null,null,null,null,null,null,null,null,null,"X",null,null,"X",null,null,null,null,null,null,null,284,6,"DTS-HD Master Audio 5.1","DTS-HD Master Audio 2.0",1.78,2,"Blu-ray","Yumemiru Danshi wa Genjitsushugisha","TheDreaming1.0"]
[109,"The Pet Girl of Sakurasou",null,null,null,null,null,null,null,null,null,"X",null,null,"X",null,null,null,null,null,null,null,576,12,"Dolby Digital 2.0 Stereo","Dolby Digital 2.0 Stereo",1.78,4,"Blu-ray","Sakura-sō no Petto na Kanojo","ThePetGirl1.0"]
[110,"The Quintessential Quintuplets",null,null,null,null,null,null,null,null,null,"X",null,null,"X",null,null,null,null,null,null,null,300,12,"DTS-HD Master Audio 2.0","DTS-HD Master Audio 2.0",1.78,3,"Blu-ray","Go-Tōbun no Hanayome","TheQuintes1.0"]
[111,"The Quintessential Quintuplets 2",null,null,null,null,null,null,null,null,null,"X",null,null,"X",null,null,null,null,null,null,null,300,12,"DTS-HD Master Audio 2.0","DTS-HD Master Audio 2.0",1.78,3,"Blu-ray","Go-Tōbun no Hanayome ∬","TheQuintes2.0"]
[112,"The Quintessential Quintuplets Movie",null,null,null,"X",null,null,null,null,null,"X",null,null,"X",null,null,null,null,null,null,null,135,0,"DTS-HD Master Audio 2.0","DTS-HD Master Audio 2.0",1.78,1,"Blu-ray","Eiga Go-Tōbun no Hanayome","TheQuintes3.0"]
[113,"The Testament of Sister New Devil - Vol. 1",null,null,null,null,"X","X",null,null,null,"X",null,null,null,null,null,null,null,null,null,null,150,16,"LPCM 2.0","LPCM 2.0",1.78,1,"Blu-ray","Shinmai Maō no Tesutamento","TheTestamentofSister1.1"]
[114,"The Testament of Sister New Devil - Vol. 2",null,null,null,null,"X","X",null,null,null,"X",null,null,null,null,null,null,null,null,null,null,175,16,"LPCM 2.0","LPCM 2.0",1.78,1,"Blu-ray","Shinmai Maō no Tesutamento","TheTestamentofSister1.2"]
[115,"The Testament of Sister New Devil Burst - Vol. 3",null,"X",null,null,"X","X",null,null,null,"X",null,null,null,null,null,null,null,null,null,null,150,16,"LPCM 2.0","LPCM 2.0",1.78,1,"Blu-ray","Shinmai Maō no Tesutamento BURST","TheTestamentofSister2.1"]
[116,"The Testament of Sister New Devil Burst - Vol. 4",null,"X",null,null,"X","X",null,null,null,"X",null,null,null,null,null,null,null,null,null,null,100,16,"LPCM 2.0","LPCM 2.0",1.78,1,"Blu-ray","Shinmai Maō no Tesutamento BURST","TheTestamentofSister2.2"]
[117,"The Testament of Sister New Devil Departures",null,"X",null,null,"X","X",null,null,null,"X",null,null,null,null,null,null,null,null,null,null,60,16,"DTS-HD Master Audio 2.0","DTS-HD Master Audio 2.0",1.78,1,"Blu-ray","Shinmai Maō no Tesutamento: Departures","TheTestamentofSister2.3"]
[118,"To Love-Ru",null,null,null,null,null,null,null,null,null,"X",null,null,"X",null,null,"X",null,null,null,null,576,16,"DTS-HD Master Audio 2.0","DTS-HD Master Audio 2.0",1.78,6,"Blu-ray","To Rabu ru","ToLo1.0"]
[119,"Motto To Love-Ru: Trouble",null,null,null,null,null,null,null,null,null,"X",null,null,"X",null,null,"X",null,null,null,null,254,16,"DTS-HD Master Audio 2.0","DTS-HD Master Audio 2.0",1.78,3,"Blu-ray","Motto To Rabu ru","ToLo2.0"]
[120,"To Love-Ru: Darkness",null,null,null,null,null,null,null,null,null,"X",null,null,"X",null,null,"X",null,null,null,null,273,16,"DTS-HD Master Audio 2.0","DTS-HD Master Audio 2.0",1.78,3,"Blu-ray","To Raburu -Toraburu- Dākunesu","ToLo3.0"]
[121,"To Love-Ru: Darkness 2nd",null,null,null,null,null,null,null,null,null,"X",null,null,"X",null,null,"X",null,null,null,null,338,16,"DTS-HD Master Audio 5.1","DTS-HD Master Audio 5.1",1.78,4,"Blu-ray","To Raburu -Toraburu- Dākunesu Sekando","ToLo4.0"]
[122,"Triage X - Vol. 1",null,"X",null,null,"X",null,null,null,null,null,null,null,null,null,null,null,null,null,null,null,100,16,"DTS-HD Master Audio 2.0","DTS-HD Master Audio 2.0",1.78,1,"Blu-ray","Toriāji Ikusu","Tria1.1"]
[123,"Triage X - Vol. 2",null,"X",null,null,"X",null,null,null,null,null,null,null,null,null,null,null,null,null,null,null,100,16,"DTS-HD Master Audio 2.0","DTS-HD Master Audio 2.0",1.78,1,"Blu-ray","Toriāji Ikusu","Tria1.2"]
[124,"Triage X - Vol. 3",null,"X",null,null,"X",null,null,null,null,null,null,null,null,null,null,null,null,null,null,null,75,16,"DTS-HD Master Audio 2.0","DTS-HD Master Audio 2.0",1.78,1,"Blu-ray","Toriāji Ikusu","Tria1.3"]
[125,"Trinity Seven - Vol. 1",null,"X",null,null,null,"X",null,null,null,"X",null,null,null,null,null,null,null,null,null,null,96,12,"DTS-HD Master Audio 5.1","DTS-HD Master Audio 2.0",1.78,1,"Blu-ray","Toriniti sebun","Trinity1.1"]
[126,"Trinity Seven - Vol. 2",null,"X",null,null,null,"X",null,null,null,"X",null,null,null,null,null,null,null,null,null,null,96,12,"DTS-HD Master Audio 5.1","DTS-HD Master Audio 2.0",1.78,1,"Blu-ray","Toriniti sebun","Trinity1.2"]
[127,"Trinity Seven - Vol. 3",null,"X",null,null,null,"X",null,null,null,"X",null,null,null,null,null,null,null,null,null,null,96,12,"DTS-HD Master Audio 5.1","DTS-HD Master Audio 2.0",1.78,1,"Blu-ray","Toriniti sebun","Trinity1.3"]
[128,"Trinity Seven: Eternity Library & Alchemic Girl",null,"X",null,null,null,"X",null,null,null,"X",null,null,null,null,null,null,null,null,null,null,56,12,"DTS-HD Master Audio 5.1","DTS-HD Master Audio 2.0",1.78,1,"Blu-ray","Gekijō-ban Toriniti Sebun: Yūkyū Toshokan to Renkinjutsu Shōjo","Trinity2.0"]
[{"$f":"A129+1","v":129},"Trinity Seven: Heavens Library & Crimson Lord",null,"X",null,null,null,"X",null,null,null,"X",null,null,null,null,null,null,null,null,null,null,63,16,"DTS-HD Master Audio 5.1","DTS-HD Master Audio 5.1",1.85,1,"Blu-ray","Gekijōban Toriniti Sebun: Tenkū Toshokan to Shinku no Maō","Trinity3.0"]
[130,"Tsugumomo - Vol. 1",null,"X",null,null,"X","X",null,null,null,"X",null,null,"X",null,null,null,null,null,null,null,100,16,"DTS-HD Master Audio 5.1","LPCM 2.0",1.78,1,"Blu-ray","Tsugumomo","Tsugumomo 1.1"]
[131,"Tsugumomo - Vol. 2",null,"X",null,null,"X","X",null,null,null,"X",null,null,"X",null,null,null,null,null,null,null,100,16,"DTS-HD Master Audio 5.1","LPCM 2.0",1.78,1,"Blu-ray","Tsugumomo","Tsugumomo 1.2"]
[132,"Tsugumomo - Vol. 3",null,"X",null,null,"X","X",null,null,null,"X",null,null,"X",null,null,null,null,null,null,null,100,16,"DTS-HD Master Audio 5.1","LPCM 2.0",1.78,1,"Blu-ray","Tsugumomo","Tsugumomo 1.3"]
[133,"Uzaki-chan Wants to Hang Out! - Staffel 1",null,null,null,null,null,null,null,null,null,"X",null,null,"X",null,null,null,null,null,null,null,300,12,"Dolby TrueHD 2.0","Dolby TrueHD 2.0",1.78,2,"Blu-ray","Uzaki-chan wa asobitai!","Uzaki1.0"]
[134,"Uzaki-chan Wants to Hang Out! - Staffel 2",null,null,null,null,null,null,null,null,null,"X",null,null,"X",null,null,null,null,null,null,null,325,12,"Dolby TrueHD 2.0","Dolby TrueHD 2.0",2.78,2,"Blu-ray","Uzaki-chan wa asobitai! Ω","Uzaki2.0"]
[135,"Valkyrie Drive: Mermaid - Vol. 1",null,"X",null,null,null,"X",null,null,null,null,null,null,null,null,null,null,null,null,null,null,97,16,"DTS-HD Master Audio 5.1","DTS-HD Master Audio 2.0",1.78,1,"Blu-ray","Valkyrie Drive: Mermaid","Valkyrie1.1"]
[136,"Valkyrie Drive: Mermaid - Vol. 2",null,"X",null,null,null,"X",null,null,null,null,null,null,null,null,null,null,null,null,null,null,96,16,"DTS-HD Master Audio 5.1","DTS-HD Master Audio 2.0",1.78,1,"Blu-ray","Valkyrie Drive: Mermaid","Valkyrie1.2"]
[137,"Valkyrie Drive: Mermaid - Vol. 3",null,"X",null,null,null,"X",null,null,null,null,null,null,null,null,null,null,null,null,null,null,96,16,"DTS-HD Master Audio 5.1","DTS-HD Master Audio 2.0",1.78,1,"Blu-ray","Valkyrie Drive: Mermaid","Valkyrie1.3"]
[138,"Val x Love",null,"X",null,null,null,"X",null,null,null,"X",null,null,null,null,null,null,null,null,null,null,300,16,"DTS-HD Master Audio 2.0","DTS-HD Master Audio 2.0",1.78,3,"Blu-ray","Varu x ravu","ValxLo1.0"]
[139,"Vermeil in Gold",null,null,null,"X",null,"X",null,null,null,"X",null,null,"X",null,null,null,null,null,null,null,288,12,"DTS-HD Master Audio 2.0","DTS-HD Master Audio 2.0",1.78,1,"Blu-ray","Kinsō no Verumeiyu: Gakeppuchi Majutsushi wa Saikyō no Yakusai to Mahō Sekai o Tsukisusumu","Vermeil1.0"]
[140,"We Never Learn - Staffel 1",null,null,null,null,null,null,null,null,null,"X",null,null,"X",null,null,null,null,null,null,null,325,12,"Dolby Digital 2.0 Stereo","Dolby Digital 2.0 Stereo",1.78,3,"Blu-ray","Bokutachi wa Benkyō ga Dekinai","WeNever1"]
[141,"We Never Learn - Staffel 2",null,null,null,null,null,null,null,null,null,"X",null,null,"X",null,null,null,null,null,null,null,325,12,"Dolby Digital 2.0 Stereo","Dolby Digital 2.0 Stereo",1.78,3,"Blu-ray","Bokutachi wa Benkyō ga Dekinai","WeNever2"]
[142,"Why the Hell Are You Here, Teacher!? - Vol. 1",null,null,null,null,"X",null,null,null,null,"X",null,null,"X",null,null,null,null,null,null,null,72,16,"Dolby Digital 2.0 Stereo","Dolby Digital 2.0 Stereo",1.78,1,"Blu-ray","Nande koko ni sensei ga!?","Whythe1.1"]
[143,"Why the Hell Are You Here, Teacher!? - Vol. 2",null,null,null,null,"X",null,null,null,null,"X",null,null,"X",null,null,null,null,null,null,null,72,16,"Dolby Digital 2.0 Stereo","Dolby Digital 2.0 Stereo",1.78,1,"Blu-ray","Nande koko ni sensei ga!?","Whythe1.2"]
[144,"Witchblade",null,"X",null,null,null,"X",null,null,null,null,null,null,null,null,null,null,null,null,null,null,600,16,"Dolby Digital 5.1","Dolby Digital 2.0 Stereo",1.78,4,"Blu-ray","Witchblade","Witchblade1.0"]
[145,"2.5 Dimensional Seduction",null,null,null,"X",null,null,null,null,null,"X",null,null,"X",null,null,null,null,null,null,null,{"$f":"144+144+144","v":432},16,"DTS-HD Master Audio 2.0","DTS-HD Master Audio 2.0",1.78,{"$f":"1+1+1","v":3},"Blu-ray","2.5 Jigen no Ririsa","zzz 2.5Dimens1.0"]
[146,"Strike Witches: Operation Victory Arrow",null,"X",null,null,null,null,null,null,null,"X",null,null,null,null,null,"X",null,null,null,null,96,16,"DTS-HD Master Audio 2.0","DTS-HD Master Audio 2.0",1.78,1,"Blu-ray","Sutoraiku Witchīzu: Operation Victory Arrow","StrikeWitches2.5"]
[147,"Strike Witches - Staffel 1",null,"X",null,null,null,null,null,null,null,null,null,null,null,null,null,"X",null,null,null,null,null,null,null,null,null,null,"Blu-ray","Sutoraiku Witchīzu 2","zzz StrikeWitches2.0"]
[148]
[149]
[150]
[151]
[152]
[153]
[154]
[155]
[156]
[157]
[158]
[159]
[160]
[161]
[162]
[163]
[164]
[165]
[166]
[167]
[168]
[169]
[170]
[171]
[172]
[173]
[174]
[175]
[176]
[177]
[178]
[179]
[180]
[181]
[182]
[183]
[184]
[185]
[186]
[187]
[188]
[189]
[190]
[191]
[192]
[{"$f":"A193+1","v":193}]
[194]
[195]
[196]
[197]
[198]
[199]
[200]
[201]
[202]
[203]
[204]
[205]

{"sheet":"Musik","index":3,"n_rows":11,"n_cols":11,"rows_kept":11,"cut":false,"hidden":false,"merged":[]}
[null,"Interpret","Titel","Musik","Länge","FSK","Tonformat","Bildformat (x:1)","Anzahl Discs","Medientyp","Sortierschlüssel"]
[{"$f":"A1+1","v":1},"Corrs, The","Unplugged","X",72,0,"Dolby Digital 5.1",1.78,1,"DVD","Cor - Unp"]
[2,"Metallica","S&M","X",190,0,"Dolby Digital 5.1",1.33,2,"DVD","Met- S&M"]
[3,"Paul McCartney","In Red Square","X",153,0,"DTS 5.1",1.33,1,"DVD","Pau - InR"]
[4,"Schandmaul","Hexenkessel","X",72,6,"Dolby Digital 5.1",1.33,1,"DVD","Sch - Hex"]
[5,"Schandmaul","Kunststück","X",91,12,"Dolby Digital 5.1",1.78,1,"DVD","Sch - Kun"]
[6,"Schandmaul","Sinnfonie","X",224,0,"DTS 5.1",1.78,2,"DVD","Sch - Sin"]
[7,"Shakira","Unplugged","X",75,0,"Dolby Digital 5.1",1.33,1,"DVD","Sha - Unp"]
[8,"Within Temptation","Mother Earth","X",72,12,"DTS 5.1",1.33,2,"DVD","Wit - Mot"]
[9]
[10]

{"sheet":"Definitionen","index":4,"n_rows":23,"n_cols":4,"rows_kept":23,"cut":false,"hidden":false,"merged":[]}
["FSK","Tonformat","Bildformat","Medientyp"]
[0,"-",1.33,"DVD"]
[6,"Dolby Atmos 7.1.4",1.78,"Blu-ray"]
[12,"Dolby Digital 1.0 Mono",1.85,"3D Blu-ray"]
[16,"Dolby Digital 2.0 Stereo",2.1]
[18,"Dolby Digital 2.0 Surround",2.2000000000000002]
[null,"Dolby Digital 5.1",2.2400000000000002]
[null,"Dolby Digital 6.1",2.35]
[null,"Dolby Digital 7.1",2.39]
[null,"Dolby TrueHD 2.0",2.4]
[null,"Dolby TrueHD 5.1"]
[null,"Dolby TrueHD 7.1"]
[null,"DTS 5.1"]
[null,"DTS 6.1-ES"]
[null,"DTS-ES Discrete 6.1"]
[null,"DTS-HD High Resolution 5.1"]
[null,"DTS-HD High Resolution 6.1"]
[null,"DTS-HD High Resolution 7.1"]
[null,"DTS-HD Master Audio 2.0"]
[null,"DTS-HD Master Audio 5.1"]
[null,"DTS-HD Master Audio 6.1"]
[null,"DTS-HD Master Audio 7.1"]
[null,"LPCM 2.0"]